{"text_format":"3","workbook":"xlsx","n_sheets":3,"sheets":["Ceļveža dati","Atjaunināmais ceļvedis","Par"],"not_rendered":{"defined_names":5},"read":"whole","date_system":"1900"}

{"sheet":"Ceļveža dati","index":0,"n_rows":13,"n_cols":7,"rows_kept":13,"merged":[[12,1,12,4]]}
["Izveidojiet atjaunināmo ceļvedi, ievadot svarīgus atskaites punktus vai darbības ceļveža dati tabulā šajā darblapā.\nŠīs darblapas nosaukums ir norādīts šūnā B1. \nInformācija par šīs darblapas lietošanu, tostarp norādījumi ekrāna lasītājiem, ir pieejama darblapā Par.\nTurpiniet naviģēt uz leju kolonnā A, lai skatītu papildu norādījumus.","Atjaunināmā laika grafika dati"]
["Tabulu virsraksti ir norādīti B2–E2 šūnā. Izmantojiet virsraksta filtrus, lai kārtotu tabulu un atrastu konkrētus vienumus.\nAtjaunināmo ceļvedi ir ieteicams izmanot, kārtojot tabulu augošā secībā pēc prioritātes un pēc tam — pēc atskaites punkts vai darbības.\nDatu paraugi ir sniegti ceļveža dati tabulā B3–E12 šūnā. \nKad atskaites punkts ir īstenots vai darbība ir pabeigta, atjauniniet atbilstošo rezultāta lauku, lai rezultāti tiktu parādīti atjaunināmā ceļveža darblapā. Ievadiet “Bez izmaiņām”, lai izceltu atskaites punktus bez izmaiņām.\nPārejiet uz šūnu A13, lai skatītu nākamos norādījumus.\n","Mērķis","Atskaites punkts vai darbība","Prioritāte","Rezultāts",null,"<-- Kārtojiet tabulu pēc prioritāte un atskaites punkts vai darbība augošā secībā."]
[null,"Pašreizējais","1. darbība\nBūvējuma prototips","1 — augsta",null,null,"<-- Pievienojiet katra īstenotā atskaites punkta rezultātu. Ievadiet “Bez izmaiņām”, lai izceltu atskaites punktus bez izmaiņām."]
[null,"Termiņš tuvojas","2. darbība\nDemonstrācijas prototips","1 — augsta"]
[null,"Pašreizējais","6. darbība","1 — augsta"]
[null,"Nākotnē","7. darbība\nIzstrādes ārpakalpojumi pirmajā posmā — ieviešana","1 — augsta"]
[null,"Pabeigts","9. darbība\nPirmais posms ir apstiprināts","1 — augsta","Samazinājums par 10%"]
[null,"Nākotnē","10. darbība","2 — vidēja"]
[null,"Termiņš tuvojas","8. darbība","2 — vidēja"]
[null,"Pabeigts","3. darbība","3 — zema","Bez izmaiņām"]
[null,"Nākotnē","4. darbība","3 — zema"]
[null,"Pašreizējais","5. darbība","3 — zema"]
["Pievienojiet jaunus vienumus, ievietojot jaunas rindas tabulā virs šīs līnijas.\nŠis ir pēdējais norādījums šajā darblapā.","Pievienojiet jaunus vienumus, ievietojot jaunas rindas virs šīs līnijas"]

{"sheet":"Atjaunināmais ceļvedis","index":1,"n_rows":100,"n_cols":8,"rows_kept":100}
["Atjaunināmais ceļvedis, kurā parādīti atskaites punkti un darbības no ceļveža dati darblapas, ir šajā darblapā. \nVirsraksts ir šūnā B1. \nRezultāti, uz kuriem attiecināms apgalvojums “Bez izmaiņām”, ir iezīmēti gaiši oranžā krāsā: rgb(255, 230, 210).\nĪstenotie atskaites punkti vai darbības ir iezīmētas gaiši zaļā krāsā: rgb(237,251,219).","Atjaunināmais ceļvedis"]
["Diagrammu virsraksti ir šūnās B2, D2, F2 un H2. Tie ir šādi: Pabeigts, Pašreizējais, Termiņš tuvojas un Nākotnē. Modificējiet šos virsrakstus, lai mainītu mērķa atlases vērtības ceļveža dati tabulā ceļveža datu darblapā.\nB3–H20 šūnā ir ietverti šīs rindas virsrakstiem atbilstošie atskaites punkti un darbības. \nAtskaites punkti un darbības ir izveidotas ceļveža dati darblapā.\nNEMODIFICĒJIET un NEDZĒSIET ierakstus šajā darblapā. Atjauniniet ceļveža dati tabulu ceļveža dati darblapā, lai atjauninātu saturu šajā darblapā.\nŠis ir pēdējais norādījums šajā darblapā.","Pabeigts",null,"Pašreizējais",null,"Termiņš tuvojas",null,"Nākotnē"]
[null,{"$f":"IFERROR(INDEX(Darbība,SMALL(IF(Mērķis=$B$2,ROW(Darbība)-MIN(ROW(Darbība))+1),ROWS($B$3:B3)))&\" \"&CHAR(10)&(INDEX(Rezultāts,SMALL(IF(Mērķis=$B$2,ROW(Rezultāts)-MIN(ROW(Rezultāts))+1),ROWS($B$3:B3))))&CHAR(10),\"\")","v":"9. darbība\nPirmais posms ir apstiprināts \nSamazinājums par 10%\n"},null,{"$f":"IFERROR(INDEX(Darbība,SMALL(IF(Mērķis=$D$2,ROW(Darbība)-MIN(ROW(Darbība))+1),ROWS($B$3:B3)))&CHAR(10),\"\")","v":"1. darbība\nBūvējuma prototips\n"},null,{"$f":"IFERROR(INDEX(Darbība,SMALL(IF(Mērķis=$F$2,ROW(Darbība)-MIN(ROW(Darbība))+1),ROWS($B$3:B3)))&CHAR(10),\"\")","v":"2. darbība\nDemonstrācijas prototips\n"},null,{"$f":"IFERROR(INDEX(Darbība,SMALL(IF(Mērķis=$H$2,ROW(Darbība)-MIN(ROW(Darbība))+1),ROWS($B$3:B3)))&CHAR(10),\"\")","v":"7. darbība\nIzstrādes ārpakalpojumi pirmajā posmā — ieviešana\n"}]
[null,{"$f":"IFERROR(INDEX(Darbība,SMALL(IF(Mērķis=$B$2,ROW(Darbība)-MIN(ROW(Darbība))+1),ROWS($B$3:B4)))&\" \"&CHAR(10)&(INDEX(Rezultāts,SMALL(IF(Mērķis=$B$2,ROW(Rezultāts)-MIN(ROW(Rezultāts))+1),ROWS($B$3:B4))))&CHAR(10),\"\")","v":"3. darbība \nBez izmaiņām\n"},null,{"$f":"IFERROR(INDEX(Darbība,SMALL(IF(Mērķis=$D$2,ROW(Darbība)-MIN(ROW(Darbība))+1),ROWS($B$3:B4)))&CHAR(10),\"\")","v":"6. darbība\n"},null,{"$f":"IFERROR(INDEX(Darbība,SMALL(IF(Mērķis=$F$2,ROW(Darbība)-MIN(ROW(Darbība))+1),ROWS($B$3:B4)))&CHAR(10),\"\")","v":"8. darbība\n"},null,{"$f":"IFERROR(INDEX(Darbība,SMALL(IF(Mērķis=$H$2,ROW(Darbība)-MIN(ROW(Darbība))+1),ROWS($B$3:B4)))&CHAR(10),\"\")","v":"10. darbība\n"}]
[null,{"$f":"IFERROR(INDEX(Darbība,SMALL(IF(Mērķis=$B$2,ROW(Darbība)-MIN(ROW(Darbība))+1),ROWS($B$3:B5)))&\" \"&CHAR(10)&(INDEX(Rezultāts,SMALL(IF(Mērķis=$B$2,ROW(Rezultāts)-MIN(ROW(Rezultāts))+1),ROWS($B$3:B5))))&CHAR(10),\"\")","v":""},null,{"$f":"IFERROR(INDEX(Darbība,SMALL(IF(Mērķis=$D$2,ROW(Darbība)-MIN(ROW(Darbība))+1),ROWS($B$3:B5)))&CHAR(10),\"\")","v":"5. darbība\n"},null,{"$f":"IFERROR(INDEX(Darbība,SMALL(IF(Mērķis=$F$2,ROW(Darbība)-MIN(ROW(Darbība))+1),ROWS($B$3:B5)))&CHAR(10),\"\")","v":""},null,{"$f":"IFERROR(INDEX(Darbība,SMALL(IF(Mērķis=$H$2,ROW(Darbība)-MIN(ROW(Darbība))+1),ROWS($B$3:B5)))&CHAR(10),\"\")","v":"4. darbība\n"}]
[null,{"$f":"IFERROR(INDEX(Darbība,SMALL(IF(Mērķis=$B$2,ROW(Darbība)-MIN(ROW(Darbība))+1),ROWS($B$3:B6)))&\" \"&CHAR(10)&(INDEX(Rezultāts,SMALL(IF(Mērķis=$B$2,ROW(Rezultāts)-MIN(ROW(Rezultāts))+1),ROWS($B$3:B6))))&CHAR(10),\"\")","v":""},null,{"$f":"IFERROR(INDEX(Darbība,SMALL(IF(Mērķis=$D$2,ROW(Darbība)-MIN(ROW(Darbība))+1),ROWS($B$3:B6)))&CHAR(10),\"\")","v":""},null,{"$f":"IFERROR(INDEX(Darbība,SMALL(IF(Mērķis=$F$2,ROW(Darbība)-MIN(ROW(Darbība))+1),ROWS($B$3:B6)))&CHAR(10),\"\")","v":""},null,{"$f":"IFERROR(INDEX(Darbība,SMALL(IF(Mērķis=$H$2,ROW(Darbība)-MIN(ROW(Darbība))+1),ROWS($B$3:B6)))&CHAR(10),\"\")","v":""}]
[null,{"$f":"IFERROR(INDEX(Darbība,SMALL(IF(Mērķis=$B$2,ROW(Darbība)-MIN(ROW(Darbība))+1),ROWS($B$3:B7)))&\" \"&CHAR(10)&(INDEX(Rezultāts,SMALL(IF(Mērķis=$B$2,ROW(Rezultāts)-MIN(ROW(Rezultāts))+1),ROWS($B$3:B7))))&CHAR(10),\"\")","v":""},null,{"$f":"IFERROR(INDEX(Darbība,SMALL(IF(Mērķis=$D$2,ROW(Darbība)-MIN(ROW(Darbība))+1),ROWS($B$3:B7)))&CHAR(10),\"\")","v":""},null,{"$f":"IFERROR(INDEX(Darbība,SMALL(IF(Mērķis=$F$2,ROW(Darbība)-MIN(ROW(Darbība))+1),ROWS($B$3:B7)))&CHAR(10),\"\")","v":""},null,{"$f":"IFERROR(INDEX(Darbība,SMALL(IF(Mērķis=$H$2,ROW(Darbība)-MIN(ROW(Darbība))+1),ROWS($B$3:B7)))&CHAR(10),\"\")","v":""}]
[null,{"$f":"IFERROR(INDEX(Darbība,SMALL(IF(Mērķis=$B$2,ROW(Darbība)-MIN(ROW(Darbība))+1),ROWS($B$3:B8)))&\" \"&CHAR(10)&(INDEX(Rezultāts,SMALL(IF(Mērķis=$B$2,ROW(Rezultāts)-MIN(ROW(Rezultāts))+1),ROWS($B$3:B8))))&CHAR(10),\"\")","v":""},null,{"$f":"IFERROR(INDEX(Darbība,SMALL(IF(Mērķis=$D$2,ROW(Darbība)-MIN(ROW(Darbība))+1),ROWS($B$3:B8)))&CHAR(10),\"\")","v":""},null,{"$f":"IFERROR(INDEX(Darbība,SMALL(IF(Mērķis=$F$2,ROW(Darbība)-MIN(ROW(Darbība))+1),ROWS($B$3:B8)))&CHAR(10),\"\")","v":""},null,{"$f":"IFERROR(INDEX(Darbība,SMALL(IF(Mērķis=$H$2,ROW(Darbība)-MIN(ROW(Darbība))+1),ROWS($B$3:B8)))&CHAR(10),\"\")","v":""}]
[null,{"$f":"IFERROR(INDEX(Darbība,SMALL(IF(Mērķis=$B$2,ROW(Darbība)-MIN(ROW(Darbība))+1),ROWS($B$3:B9)))&\" \"&CHAR(10)&(INDEX(Rezultāts,SMALL(IF(Mērķis=$B$2,ROW(Rezultāts)-MIN(ROW(Rezultāts))+1),ROWS($B$3:B9))))&CHAR(10),\"\")","v":""},null,{"$f":"IFERROR(INDEX(Darbība,SMALL(IF(Mērķis=$D$2,ROW(Darbība)-MIN(ROW(Darbība))+1),ROWS($B$3:B9)))&CHAR(10),\"\")","v":""},null,{"$f":"IFERROR(INDEX(Darbība,SMALL(IF(Mērķis=$F$2,ROW(Darbība)-MIN(ROW(Darbība))+1),ROWS($B$3:B9)))&CHAR(10),\"\")","v":""},null,{"$f":"IFERROR(INDEX(Darbība,SMALL(IF(Mērķis=$H$2,ROW(Darbība)-MIN(ROW(Darbība))+1),ROWS($B$3:B9)))&CHAR(10),\"\")","v":""}]
[null,{"$f":"IFERROR(INDEX(Darbība,SMALL(IF(Mērķis=$B$2,ROW(Darbība)-MIN(ROW(Darbība))+1),ROWS($B$3:B10)))&\" \"&CHAR(10)&(INDEX(Rezultāts,SMALL(IF(Mērķis=$B$2,ROW(Rezultāts)-MIN(ROW(Rezultāts))+1),ROWS($B$3:B10))))&CHAR(10),\"\")","v":""},null,{"$f":"IFERROR(INDEX(Darbība,SMALL(IF(Mērķis=$D$2,ROW(Darbība)-MIN(ROW(Darbība))+1),ROWS($B$3:B10)))&CHAR(10),\"\")","v":""},null,{"$f":"IFERROR(INDEX(Darbība,SMALL(IF(Mērķis=$F$2,ROW(Darbība)-MIN(ROW(Darbība))+1),ROWS($B$3:B10)))&CHAR(10),\"\")","v":""},null,{"$f":"IFERROR(INDEX(Darbība,SMALL(IF(Mērķis=$H$2,ROW(Darbība)-MIN(ROW(Darbība))+1),ROWS($B$3:B10)))&CHAR(10),\"\")","v":""}]
[null,{"$f":"IFERROR(INDEX(Darbība,SMALL(IF(Mērķis=$B$2,ROW(Darbība)-MIN(ROW(Darbība))+1),ROWS($B$3:B11)))&\" \"&CHAR(10)&(INDEX(Rezultāts,SMALL(IF(Mērķis=$B$2,ROW(Rezultāts)-MIN(ROW(Rezultāts))+1),ROWS($B$3:B11))))&CHAR(10),\"\")","v":""},null,{"$f":"IFERROR(INDEX(Darbība,SMALL(IF(Mērķis=$D$2,ROW(Darbība)-MIN(ROW(Darbība))+1),ROWS($B$3:B11)))&CHAR(10),\"\")","v":""},null,{"$f":"IFERROR(INDEX(Darbība,SMALL(IF(Mērķis=$F$2,ROW(Darbība)-MIN(ROW(Darbība))+1),ROWS($B$3:B11)))&CHAR(10),\"\")","v":""},null,{"$f":"IFERROR(INDEX(Darbība,SMALL(IF(Mērķis=$H$2,ROW(Darbība)-MIN(ROW(Darbība))+1),ROWS($B$3:B11)))&CHAR(10),\"\")","v":""}]
[null,{"$f":"IFERROR(INDEX(Darbība,SMALL(IF(Mērķis=$B$2,ROW(Darbība)-MIN(ROW(Darbība))+1),ROWS($B$3:B12)))&\" \"&CHAR(10)&(INDEX(Rezultāts,SMALL(IF(Mērķis=$B$2,ROW(Rezultāts)-MIN(ROW(Rezultāts))+1),ROWS($B$3:B12))))&CHAR(10),\"\")","v":""},null,{"$f":"IFERROR(INDEX(Darbība,SMALL(IF(Mērķis=$D$2,ROW(Darbība)-MIN(ROW(Darbība))+1),ROWS($B$3:B12)))&CHAR(10),\"\")","v":""},null,{"$f":"IFERROR(INDEX(Darbība,SMALL(IF(Mērķis=$F$2,ROW(Darbība)-MIN(ROW(Darbība))+1),ROWS($B$3:B12)))&CHAR(10),\"\")","v":""},null,{"$f":"IFERROR(INDEX(Darbība,SMALL(IF(Mērķis=$H$2,ROW(Darbība)-MIN(ROW(Darbība))+1),ROWS($B$3:B12)))&CHAR(10),\"\")","v":""}]
[null,{"$f":"IFERROR(INDEX(Darbība,SMALL(IF(Mērķis=$B$2,ROW(Darbība)-MIN(ROW(Darbība))+1),ROWS($B$3:B13)))&\" \"&CHAR(10)&(INDEX(Rezultāts,SMALL(IF(Mērķis=$B$2,ROW(Rezultāts)-MIN(ROW(Rezultāts))+1),ROWS($B$3:B13))))&CHAR(10),\"\")","v":""},null,{"$f":"IFERROR(INDEX(Darbība,SMALL(IF(Mērķis=$D$2,ROW(Darbība)-MIN(ROW(Darbība))+1),ROWS($B$3:B13)))&CHAR(10),\"\")","v":""},null,{"$f":"IFERROR(INDEX(Darbība,SMALL(IF(Mērķis=$F$2,ROW(Darbība)-MIN(ROW(Darbība))+1),ROWS($B$3:B13)))&CHAR(10),\"\")","v":""},null,{"$f":"IFERROR(INDEX(Darbība,SMALL(IF(Mērķis=$H$2,ROW(Darbība)-MIN(ROW(Darbība))+1),ROWS($B$3:B13)))&CHAR(10),\"\")","v":""}]
[null,{"$f":"IFERROR(INDEX(Darbība,SMALL(IF(Mērķis=$B$2,ROW(Darbība)-MIN(ROW(Darbība))+1),ROWS($B$3:B14)))&\" \"&CHAR(10)&(INDEX(Rezultāts,SMALL(IF(Mērķis=$B$2,ROW(Rezultāts)-MIN(ROW(Rezultāts))+1),ROWS($B$3:B14))))&CHAR(10),\"\")","v":""},null,{"$f":"IFERROR(INDEX(Darbība,SMALL(IF(Mērķis=$D$2,ROW(Darbība)-MIN(ROW(Darbība))+1),ROWS($B$3:B14)))&CHAR(10),\"\")","v":""},null,{"$f":"IFERROR(INDEX(Darbība,SMALL(IF(Mērķis=$F$2,ROW(Darbība)-MIN(ROW(Darbība))+1),ROWS($B$3:B14)))&CHAR(10),\"\")","v":""},null,{"$f":"IFERROR(INDEX(Darbība,SMALL(IF(Mērķis=$H$2,ROW(Darbība)-MIN(ROW(Darbība))+1),ROWS($B$3:B14)))&CHAR(10),\"\")","v":""}]
[null,{"$f":"IFERROR(INDEX(Darbība,SMALL(IF(Mērķis=$B$2,ROW(Darbība)-MIN(ROW(Darbība))+1),ROWS($B$3:B15)))&\" \"&CHAR(10)&(INDEX(Rezultāts,SMALL(IF(Mērķis=$B$2,ROW(Rezultāts)-MIN(ROW(Rezultāts))+1),ROWS($B$3:B15))))&CHAR(10),\"\")","v":""},null,{"$f":"IFERROR(INDEX(Darbība,SMALL(IF(Mērķis=$D$2,ROW(Darbība)-MIN(ROW(Darbība))+1),ROWS($B$3:B15)))&CHAR(10),\"\")","v":""},null,{"$f":"IFERROR(INDEX(Darbība,SMALL(IF(Mērķis=$F$2,ROW(Darbība)-MIN(ROW(Darbība))+1),ROWS($B$3:B15)))&CHAR(10),\"\")","v":""},null,{"$f":"IFERROR(INDEX(Darbība,SMALL(IF(Mērķis=$H$2,ROW(Darbība)-MIN(ROW(Darbība))+1),ROWS($B$3:B15)))&CHAR(10),\"\")","v":""}]
[null,{"$f":"IFERROR(INDEX(Darbība,SMALL(IF(Mērķis=$B$2,ROW(Darbība)-MIN(ROW(Darbība))+1),ROWS($B$3:B16)))&\" \"&CHAR(10)&(INDEX(Rezultāts,SMALL(IF(Mērķis=$B$2,ROW(Rezultāts)-MIN(ROW(Rezultāts))+1),ROWS($B$3:B16))))&CHAR(10),\"\")","v":""},null,{"$f":"IFERROR(INDEX(Darbība,SMALL(IF(Mērķis=$D$2,ROW(Darbība)-MIN(ROW(Darbība))+1),ROWS($B$3:B16)))&CHAR(10),\"\")","v":""},null,{"$f":"IFERROR(INDEX(Darbība,SMALL(IF(Mērķis=$F$2,ROW(Darbība)-MIN(ROW(Darbība))+1),ROWS($B$3:B16)))&CHAR(10),\"\")","v":""},null,{"$f":"IFERROR(INDEX(Darbība,SMALL(IF(Mērķis=$H$2,ROW(Darbība)-MIN(ROW(Darbība))+1),ROWS($B$3:B16)))&CHAR(10),\"\")","v":""}]
[null,{"$f":"IFERROR(INDEX(Darbība,SMALL(IF(Mērķis=$B$2,ROW(Darbība)-MIN(ROW(Darbība))+1),ROWS($B$3:B17)))&\" \"&CHAR(10)&(INDEX(Rezultāts,SMALL(IF(Mērķis=$B$2,ROW(Rezultāts)-MIN(ROW(Rezultāts))+1),ROWS($B$3:B17))))&CHAR(10),\"\")","v":""},null,{"$f":"IFERROR(INDEX(Darbība,SMALL(IF(Mērķis=$D$2,ROW(Darbība)-MIN(ROW(Darbība))+1),ROWS($B$3:B17)))&CHAR(10),\"\")","v":""},null,{"$f":"IFERROR(INDEX(Darbība,SMALL(IF(Mērķis=$F$2,ROW(Darbība)-MIN(ROW(Darbība))+1),ROWS($B$3:B17)))&CHAR(10),\"\")","v":""},null,{"$f":"IFERROR(INDEX(Darbība,SMALL(IF(Mērķis=$H$2,ROW(Darbība)-MIN(ROW(Darbība))+1),ROWS($B$3:B17)))&CHAR(10),\"\")","v":""}]
[null,{"$f":"IFERROR(INDEX(Darbība,SMALL(IF(Mērķis=$B$2,ROW(Darbība)-MIN(ROW(Darbība))+1),ROWS($B$3:B18)))&\" \"&CHAR(10)&(INDEX(Rezultāts,SMALL(IF(Mērķis=$B$2,ROW(Rezultāts)-MIN(ROW(Rezultāts))+1),ROWS($B$3:B18))))&CHAR(10),\"\")","v":""},null,{"$f":"IFERROR(INDEX(Darbība,SMALL(IF(Mērķis=$D$2,ROW(Darbība)-MIN(ROW(Darbība))+1),ROWS($B$3:B18)))&CHAR(10),\"\")","v":""},null,{"$f":"IFERROR(INDEX(Darbība,SMALL(IF(Mērķis=$F$2,ROW(Darbība)-MIN(ROW(Darbība))+1),ROWS($B$3:B18)))&CHAR(10),\"\")","v":""},null,{"$f":"IFERROR(INDEX(Darbība,SMALL(IF(Mērķis=$H$2,ROW(Darbība)-MIN(ROW(Darbība))+1),ROWS($B$3:B18)))&CHAR(10),\"\")","v":""}]
[null,{"$f":"IFERROR(INDEX(Darbība,SMALL(IF(Mērķis=$B$2,ROW(Darbība)-MIN(ROW(Darbība))+1),ROWS($B$3:B19)))&\" \"&CHAR(10)&(INDEX(Rezultāts,SMALL(IF(Mērķis=$B$2,ROW(Rezultāts)-MIN(ROW(Rezultāts))+1),ROWS($B$3:B19))))&CHAR(10),\"\")","v":""},null,{"$f":"IFERROR(INDEX(Darbība,SMALL(IF(Mērķis=$D$2,ROW(Darbība)-MIN(ROW(Darbība))+1),ROWS($B$3:B19)))&CHAR(10),\"\")","v":""},null,{"$f":"IFERROR(INDEX(Darbība,SMALL(IF(Mērķis=$F$2,ROW(Darbība)-MIN(ROW(Darbība))+1),ROWS($B$3:B19)))&CHAR(10),\"\")","v":""},null,{"$f":"IFERROR(INDEX(Darbība,SMALL(IF(Mērķis=$H$2,ROW(Darbība)-MIN(ROW(Darbība))+1),ROWS($B$3:B19)))&CHAR(10),\"\")","v":""}]
[null,{"$f":"IFERROR(INDEX(Darbība,SMALL(IF(Mērķis=$B$2,ROW(Darbība)-MIN(ROW(Darbība))+1),ROWS($B$3:B20)))&\" \"&CHAR(10)&(INDEX(Rezultāts,SMALL(IF(Mērķis=$B$2,ROW(Rezultāts)-MIN(ROW(Rezultāts))+1),ROWS($B$3:B20))))&CHAR(10),\"\")","v":""},null,{"$f":"IFERROR(INDEX(Darbība,SMALL(IF(Mērķis=$D$2,ROW(Darbība)-MIN(ROW(Darbība))+1),ROWS($B$3:B20)))&CHAR(10),\"\")","v":""},null,{"$f":"IFERROR(INDEX(Darbība,SMALL(IF(Mērķis=$F$2,ROW(Darbība)-MIN(ROW(Darbība))+1),ROWS($B$3:B20)))&CHAR(10),\"\")","v":""},null,{"$f":"IFERROR(INDEX(Darbība,SMALL(IF(Mērķis=$H$2,ROW(Darbība)-MIN(ROW(Darbība))+1),ROWS($B$3:B20)))&CHAR(10),\"\")","v":""}]
[null,{"$f":"IFERROR(INDEX(Darbība,SMALL(IF(Mērķis=$B$2,ROW(Darbība)-MIN(ROW(Darbība))+1),ROWS($B$3:B21)))&\" \"&CHAR(10)&(INDEX(Rezultāts,SMALL(IF(Mērķis=$B$2,ROW(Rezultāts)-MIN(ROW(Rezultāts))+1),ROWS($B$3:B21))))&CHAR(10),\"\")","v":""},null,{"$f":"IFERROR(INDEX(Darbība,SMALL(IF(Mērķis=$D$2,ROW(Darbība)-MIN(ROW(Darbība))+1),ROWS($B$3:B21)))&CHAR(10),\"\")","v":""},null,{"$f":"IFERROR(INDEX(Darbība,SMALL(IF(Mērķis=$F$2,ROW(Darbība)-MIN(ROW(Darbība))+1),ROWS($B$3:B21)))&CHAR(10),\"\")","v":""},null,{"$f":"IFERROR(INDEX(Darbība,SMALL(IF(Mērķis=$H$2,ROW(Darbība)-MIN(ROW(Darbība))+1),ROWS($B$3:B21)))&CHAR(10),\"\")","v":""}]
[null,{"$f":"IFERROR(INDEX(Darbība,SMALL(IF(Mērķis=$B$2,ROW(Darbība)-MIN(ROW(Darbība))+1),ROWS($B$3:B22)))&\" \"&CHAR(10)&(INDEX(Rezultāts,SMALL(IF(Mērķis=$B$2,ROW(Rezultāts)-MIN(ROW(Rezultāts))+1),ROWS($B$3:B22))))&CHAR(10),\"\")","v":""},null,{"$f":"IFERROR(INDEX(Darbība,SMALL(IF(Mērķis=$D$2,ROW(Darbība)-MIN(ROW(Darbība))+1),ROWS($B$3:B22)))&CHAR(10),\"\")","v":""},null,{"$f":"IFERROR(INDEX(Darbība,SMALL(IF(Mērķis=$F$2,ROW(Darbība)-MIN(ROW(Darbība))+1),ROWS($B$3:B22)))&CHAR(10),\"\")","v":""},null,{"$f":"IFERROR(INDEX(Darbība,SMALL(IF(Mērķis=$H$2,ROW(Darbība)-MIN(ROW(Darbība))+1),ROWS($B$3:B22)))&CHAR(10),\"\")","v":""}]
[null,{"$f":"IFERROR(INDEX(Darbība,SMALL(IF(Mērķis=$B$2,ROW(Darbība)-MIN(ROW(Darbība))+1),ROWS($B$3:B23)))&\" \"&CHAR(10)&(INDEX(Rezultāts,SMALL(IF(Mērķis=$B$2,ROW(Rezultāts)-MIN(ROW(Rezultāts))+1),ROWS($B$3:B23))))&CHAR(10),\"\")","v":""},null,{"$f":"IFERROR(INDEX(Darbība,SMALL(IF(Mērķis=$D$2,ROW(Darbība)-MIN(ROW(Darbība))+1),ROWS($B$3:B23)))&CHAR(10),\"\")","v":""},null,{"$f":"IFERROR(INDEX(Darbība,SMALL(IF(Mērķis=$F$2,ROW(Darbība)-MIN(ROW(Darbība))+1),ROWS($B$3:B23)))&CHAR(10),\"\")","v":""},null,{"$f":"IFERROR(INDEX(Darbība,SMALL(IF(Mērķis=$H$2,ROW(Darbība)-MIN(ROW(Darbība))+1),ROWS($B$3:B23)))&CHAR(10),\"\")","v":""}]
[null,{"$f":"IFERROR(INDEX(Darbība,SMALL(IF(Mērķis=$B$2,ROW(Darbība)-MIN(ROW(Darbība))+1),ROWS($B$3:B24)))&\" \"&CHAR(10)&(INDEX(Rezultāts,SMALL(IF(Mērķis=$B$2,ROW(Rezultāts)-MIN(ROW(Rezultāts))+1),ROWS($B$3:B24))))&CHAR(10),\"\")","v":""},null,{"$f":"IFERROR(INDEX(Darbība,SMALL(IF(Mērķis=$D$2,ROW(Darbība)-MIN(ROW(Darbība))+1),ROWS($B$3:B24)))&CHAR(10),\"\")","v":""},null,{"$f":"IFERROR(INDEX(Darbība,SMALL(IF(Mērķis=$F$2,ROW(Darbība)-MIN(ROW(Darbība))+1),ROWS($B$3:B24)))&CHAR(10),\"\")","v":""},null,{"$f":"IFERROR(INDEX(Darbība,SMALL(IF(Mērķis=$H$2,ROW(Darbība)-MIN(ROW(Darbība))+1),ROWS($B$3:B24)))&CHAR(10),\"\")","v":""}]
[null,{"$f":"IFERROR(INDEX(Darbība,SMALL(IF(Mērķis=$B$2,ROW(Darbība)-MIN(ROW(Darbība))+1),ROWS($B$3:B25)))&\" \"&CHAR(10)&(INDEX(Rezultāts,SMALL(IF(Mērķis=$B$2,ROW(Rezultāts)-MIN(ROW(Rezultāts))+1),ROWS($B$3:B25))))&CHAR(10),\"\")","v":""},null,{"$f":"IFERROR(INDEX(Darbība,SMALL(IF(Mērķis=$D$2,ROW(Darbība)-MIN(ROW(Darbība))+1),ROWS($B$3:B25)))&CHAR(10),\"\")","v":""},null,{"$f":"IFERROR(INDEX(Darbība,SMALL(IF(Mērķis=$F$2,ROW(Darbība)-MIN(ROW(Darbība))+1),ROWS($B$3:B25)))&CHAR(10),\"\")","v":""},null,{"$f":"IFERROR(INDEX(Darbība,SMALL(IF(Mērķis=$H$2,ROW(Darbība)-MIN(ROW(Darbība))+1),ROWS($B$3:B25)))&CHAR(10),\"\")","v":""}]
[null,{"$f":"IFERROR(INDEX(Darbība,SMALL(IF(Mērķis=$B$2,ROW(Darbība)-MIN(ROW(Darbība))+1),ROWS($B$3:B26)))&\" \"&CHAR(10)&(INDEX(Rezultāts,SMALL(IF(Mērķis=$B$2,ROW(Rezultāts)-MIN(ROW(Rezultāts))+1),ROWS($B$3:B26))))&CHAR(10),\"\")","v":""},null,{"$f":"IFERROR(INDEX(Darbība,SMALL(IF(Mērķis=$D$2,ROW(Darbība)-MIN(ROW(Darbība))+1),ROWS($B$3:B26)))&CHAR(10),\"\")","v":""},null,{"$f":"IFERROR(INDEX(Darbība,SMALL(IF(Mērķis=$F$2,ROW(Darbība)-MIN(ROW(Darbība))+1),ROWS($B$3:B26)))&CHAR(10),\"\")","v":""},null,{"$f":"IFERROR(INDEX(Darbība,SMALL(IF(Mērķis=$H$2,ROW(Darbība)-MIN(ROW(Darbība))+1),ROWS($B$3:B26)))&CHAR(10),\"\")","v":""}]
[null,{"$f":"IFERROR(INDEX(Darbība,SMALL(IF(Mērķis=$B$2,ROW(Darbība)-MIN(ROW(Darbība))+1),ROWS($B$3:B27)))&\" \"&CHAR(10)&(INDEX(Rezultāts,SMALL(IF(Mērķis=$B$2,ROW(Rezultāts)-MIN(ROW(Rezultāts))+1),ROWS($B$3:B27))))&CHAR(10),\"\")","v":""},null,{"$f":"IFERROR(INDEX(Darbība,SMALL(IF(Mērķis=$D$2,ROW(Darbība)-MIN(ROW(Darbība))+1),ROWS($B$3:B27)))&CHAR(10),\"\")","v":""},null,{"$f":"IFERROR(INDEX(Darbība,SMALL(IF(Mērķis=$F$2,ROW(Darbība)-MIN(ROW(Darbība))+1),ROWS($B$3:B27)))&CHAR(10),\"\")","v":""},null,{"$f":"IFERROR(INDEX(Darbība,SMALL(IF(Mērķis=$H$2,ROW(Darbība)-MIN(ROW(Darbība))+1),ROWS($B$3:B27)))&CHAR(10),\"\")","v":""}]
[null,{"$f":"IFERROR(INDEX(Darbība,SMALL(IF(Mērķis=$B$2,ROW(Darbība)-MIN(ROW(Darbība))+1),ROWS($B$3:B28)))&\" \"&CHAR(10)&(INDEX(Rezultāts,SMALL(IF(Mērķis=$B$2,ROW(Rezultāts)-MIN(ROW(Rezultāts))+1),ROWS($B$3:B28))))&CHAR(10),\"\")","v":""},null,{"$f":"IFERROR(INDEX(Darbība,SMALL(IF(Mērķis=$D$2,ROW(Darbība)-MIN(ROW(Darbība))+1),ROWS($B$3:B28)))&CHAR(10),\"\")","v":""},null,{"$f":"IFERROR(INDEX(Darbība,SMALL(IF(Mērķis=$F$2,ROW(Darbība)-MIN(ROW(Darbība))+1),ROWS($B$3:B28)))&CHAR(10),\"\")","v":""},null,{"$f":"IFERROR(INDEX(Darbība,SMALL(IF(Mērķis=$H$2,ROW(Darbība)-MIN(ROW(Darbība))+1),ROWS($B$3:B28)))&CHAR(10),\"\")","v":""}]
[null,{"$f":"IFERROR(INDEX(Darbība,SMALL(IF(Mērķis=$B$2,ROW(Darbība)-MIN(ROW(Darbība))+1),ROWS($B$3:B29)))&\" \"&CHAR(10)&(INDEX(Rezultāts,SMALL(IF(Mērķis=$B$2,ROW(Rezultāts)-MIN(ROW(Rezultāts))+1),ROWS($B$3:B29))))&CHAR(10),\"\")","v":""},null,{"$f":"IFERROR(INDEX(Darbība,SMALL(IF(Mērķis=$D$2,ROW(Darbība)-MIN(ROW(Darbība))+1),ROWS($B$3:B29)))&CHAR(10),\"\")","v":""},null,{"$f":"IFERROR(INDEX(Darbība,SMALL(IF(Mērķis=$F$2,ROW(Darbība)-MIN(ROW(Darbība))+1),ROWS($B$3:B29)))&CHAR(10),\"\")","v":""},null,{"$f":"IFERROR(INDEX(Darbība,SMALL(IF(Mērķis=$H$2,ROW(Darbība)-MIN(ROW(Darbība))+1),ROWS($B$3:B29)))&CHAR(10),\"\")","v":""}]
[null,{"$f":"IFERROR(INDEX(Darbība,SMALL(IF(Mērķis=$B$2,ROW(Darbība)-MIN(ROW(Darbība))+1),ROWS($B$3:B30)))&\" \"&CHAR(10)&(INDEX(Rezultāts,SMALL(IF(Mērķis=$B$2,ROW(Rezultāts)-MIN(ROW(Rezultāts))+1),ROWS($B$3:B30))))&CHAR(10),\"\")","v":""},null,{"$f":"IFERROR(INDEX(Darbība,SMALL(IF(Mērķis=$D$2,ROW(Darbība)-MIN(ROW(Darbība))+1),ROWS($B$3:B30)))&CHAR(10),\"\")","v":""},null,{"$f":"IFERROR(INDEX(Darbība,SMALL(IF(Mērķis=$F$2,ROW(Darbība)-MIN(ROW(Darbība))+1),ROWS($B$3:B30)))&CHAR(10),\"\")","v":""},null,{"$f":"IFERROR(INDEX(Darbība,SMALL(IF(Mērķis=$H$2,ROW(Darbība)-MIN(ROW(Darbība))+1),ROWS($B$3:B30)))&CHAR(10),\"\")","v":""}]
[null,{"$f":"IFERROR(INDEX(Darbība,SMALL(IF(Mērķis=$B$2,ROW(Darbība)-MIN(ROW(Darbība))+1),ROWS($B$3:B31)))&\" \"&CHAR(10)&(INDEX(Rezultāts,SMALL(IF(Mērķis=$B$2,ROW(Rezultāts)-MIN(ROW(Rezultāts))+1),ROWS($B$3:B31))))&CHAR(10),\"\")","v":""},null,{"$f":"IFERROR(INDEX(Darbība,SMALL(IF(Mērķis=$D$2,ROW(Darbība)-MIN(ROW(Darbība))+1),ROWS($B$3:B31)))&CHAR(10),\"\")","v":""},null,{"$f":"IFERROR(INDEX(Darbība,SMALL(IF(Mērķis=$F$2,ROW(Darbība)-MIN(ROW(Darbība))+1),ROWS($B$3:B31)))&CHAR(10),\"\")","v":""},null,{"$f":"IFERROR(INDEX(Darbība,SMALL(IF(Mērķis=$H$2,ROW(Darbība)-MIN(ROW(Darbība))+1),ROWS($B$3:B31)))&CHAR(10),\"\")","v":""}]
[null,{"$f":"IFERROR(INDEX(Darbība,SMALL(IF(Mērķis=$B$2,ROW(Darbība)-MIN(ROW(Darbība))+1),ROWS($B$3:B32)))&\" \"&CHAR(10)&(INDEX(Rezultāts,SMALL(IF(Mērķis=$B$2,ROW(Rezultāts)-MIN(ROW(Rezultāts))+1),ROWS($B$3:B32))))&CHAR(10),\"\")","v":""},null,{"$f":"IFERROR(INDEX(Darbība,SMALL(IF(Mērķis=$D$2,ROW(Darbība)-MIN(ROW(Darbība))+1),ROWS($B$3:B32)))&CHAR(10),\"\")","v":""},null,{"$f":"IFERROR(INDEX(Darbība,SMALL(IF(Mērķis=$F$2,ROW(Darbība)-MIN(ROW(Darbība))+1),ROWS($B$3:B32)))&CHAR(10),\"\")","v":""},null,{"$f":"IFERROR(INDEX(Darbība,SMALL(IF(Mērķis=$H$2,ROW(Darbība)-MIN(ROW(Darbība))+1),ROWS($B$3:B32)))&CHAR(10),\"\")","v":""}]
[null,{"$f":"IFERROR(INDEX(Darbība,SMALL(IF(Mērķis=$B$2,ROW(Darbība)-MIN(ROW(Darbība))+1),ROWS($B$3:B33)))&\" \"&CHAR(10)&(INDEX(Rezultāts,SMALL(IF(Mērķis=$B$2,ROW(Rezultāts)-MIN(ROW(Rezultāts))+1),ROWS($B$3:B33))))&CHAR(10),\"\")","v":""},null,{"$f":"IFERROR(INDEX(Darbība,SMALL(IF(Mērķis=$D$2,ROW(Darbība)-MIN(ROW(Darbība))+1),ROWS($B$3:B33)))&CHAR(10),\"\")","v":""},null,{"$f":"IFERROR(INDEX(Darbība,SMALL(IF(Mērķis=$F$2,ROW(Darbība)-MIN(ROW(Darbība))+1),ROWS($B$3:B33)))&CHAR(10),\"\")","v":""},null,{"$f":"IFERROR(INDEX(Darbība,SMALL(IF(Mērķis=$H$2,ROW(Darbība)-MIN(ROW(Darbība))+1),ROWS($B$3:B33)))&CHAR(10),\"\")","v":""}]
[null,{"$f":"IFERROR(INDEX(Darbība,SMALL(IF(Mērķis=$B$2,ROW(Darbība)-MIN(ROW(Darbība))+1),ROWS($B$3:B34)))&\" \"&CHAR(10)&(INDEX(Rezultāts,SMALL(IF(Mērķis=$B$2,ROW(Rezultāts)-MIN(ROW(Rezultāts))+1),ROWS($B$3:B34))))&CHAR(10),\"\")","v":""},null,{"$f":"IFERROR(INDEX(Darbība,SMALL(IF(Mērķis=$D$2,ROW(Darbība)-MIN(ROW(Darbība))+1),ROWS($B$3:B34)))&CHAR(10),\"\")","v":""},null,{"$f":"IFERROR(INDEX(Darbība,SMALL(IF(Mērķis=$F$2,ROW(Darbība)-MIN(ROW(Darbība))+1),ROWS($B$3:B34)))&CHAR(10),\"\")","v":""},null,{"$f":"IFERROR(INDEX(Darbība,SMALL(IF(Mērķis=$H$2,ROW(Darbība)-MIN(ROW(Darbība))+1),ROWS($B$3:B34)))&CHAR(10),\"\")","v":""}]
[null,{"$f":"IFERROR(INDEX(Darbība,SMALL(IF(Mērķis=$B$2,ROW(Darbība)-MIN(ROW(Darbība))+1),ROWS($B$3:B35)))&\" \"&CHAR(10)&(INDEX(Rezultāts,SMALL(IF(Mērķis=$B$2,ROW(Rezultāts)-MIN(ROW(Rezultāts))+1),ROWS($B$3:B35))))&CHAR(10),\"\")","v":""},null,{"$f":"IFERROR(INDEX(Darbība,SMALL(IF(Mērķis=$D$2,ROW(Darbība)-MIN(ROW(Darbība))+1),ROWS($B$3:B35)))&CHAR(10),\"\")","v":""},null,{"$f":"IFERROR(INDEX(Darbība,SMALL(IF(Mērķis=$F$2,ROW(Darbība)-MIN(ROW(Darbība))+1),ROWS($B$3:B35)))&CHAR(10),\"\")","v":""},null,{"$f":"IFERROR(INDEX(Darbība,SMALL(IF(Mērķis=$H$2,ROW(Darbība)-MIN(ROW(Darbība))+1),ROWS($B$3:B35)))&CHAR(10),\"\")","v":""}]
[null,{"$f":"IFERROR(INDEX(Darbība,SMALL(IF(Mērķis=$B$2,ROW(Darbība)-MIN(ROW(Darbība))+1),ROWS($B$3:B36)))&\" \"&CHAR(10)&(INDEX(Rezultāts,SMALL(IF(Mērķis=$B$2,ROW(Rezultāts)-MIN(ROW(Rezultāts))+1),ROWS($B$3:B36))))&CHAR(10),\"\")","v":""},null,{"$f":"IFERROR(INDEX(Darbība,SMALL(IF(Mērķis=$D$2,ROW(Darbība)-MIN(ROW(Darbība))+1),ROWS($B$3:B36)))&CHAR(10),\"\")","v":""},null,{"$f":"IFERROR(INDEX(Darbība,SMALL(IF(Mērķis=$F$2,ROW(Darbība)-MIN(ROW(Darbība))+1),ROWS($B$3:B36)))&CHAR(10),\"\")","v":""},null,{"$f":"IFERROR(INDEX(Darbība,SMALL(IF(Mērķis=$H$2,ROW(Darbība)-MIN(ROW(Darbība))+1),ROWS($B$3:B36)))&CHAR(10),\"\")","v":""}]
[null,{"$f":"IFERROR(INDEX(Darbība,SMALL(IF(Mērķis=$B$2,ROW(Darbība)-MIN(ROW(Darbība))+1),ROWS($B$3:B37)))&\" \"&CHAR(10)&(INDEX(Rezultāts,SMALL(IF(Mērķis=$B$2,ROW(Rezultāts)-MIN(ROW(Rezultāts))+1),ROWS($B$3:B37))))&CHAR(10),\"\")","v":""},null,{"$f":"IFERROR(INDEX(Darbība,SMALL(IF(Mērķis=$D$2,ROW(Darbība)-MIN(ROW(Darbība))+1),ROWS($B$3:B37)))&CHAR(10),\"\")","v":""},null,{"$f":"IFERROR(INDEX(Darbība,SMALL(IF(Mērķis=$F$2,ROW(Darbība)-MIN(ROW(Darbība))+1),ROWS($B$3:B37)))&CHAR(10),\"\")","v":""},null,{"$f":"IFERROR(INDEX(Darbība,SMALL(IF(Mērķis=$H$2,ROW(Darbība)-MIN(ROW(Darbība))+1),ROWS($B$3:B37)))&CHAR(10),\"\")","v":""}]
[null,{"$f":"IFERROR(INDEX(Darbība,SMALL(IF(Mērķis=$B$2,ROW(Darbība)-MIN(ROW(Darbība))+1),ROWS($B$3:B38)))&\" \"&CHAR(10)&(INDEX(Rezultāts,SMALL(IF(Mērķis=$B$2,ROW(Rezultāts)-MIN(ROW(Rezultāts))+1),ROWS($B$3:B38))))&CHAR(10),\"\")","v":""},null,{"$f":"IFERROR(INDEX(Darbība,SMALL(IF(Mērķis=$D$2,ROW(Darbība)-MIN(ROW(Darbība))+1),ROWS($B$3:B38)))&CHAR(10),\"\")","v":""},null,{"$f":"IFERROR(INDEX(Darbība,SMALL(IF(Mērķis=$F$2,ROW(Darbība)-MIN(ROW(Darbība))+1),ROWS($B$3:B38)))&CHAR(10),\"\")","v":""},null,{"$f":"IFERROR(INDEX(Darbība,SMALL(IF(Mērķis=$H$2,ROW(Darbība)-MIN(ROW(Darbība))+1),ROWS($B$3:B38)))&CHAR(10),\"\")","v":""}]
[null,{"$f":"IFERROR(INDEX(Darbība,SMALL(IF(Mērķis=$B$2,ROW(Darbība)-MIN(ROW(Darbība))+1),ROWS($B$3:B39)))&\" \"&CHAR(10)&(INDEX(Rezultāts,SMALL(IF(Mērķis=$B$2,ROW(Rezultāts)-MIN(ROW(Rezultāts))+1),ROWS($B$3:B39))))&CHAR(10),\"\")","v":""},null,{"$f":"IFERROR(INDEX(Darbība,SMALL(IF(Mērķis=$D$2,ROW(Darbība)-MIN(ROW(Darbība))+1),ROWS($B$3:B39)))&CHAR(10),\"\")","v":""},null,{"$f":"IFERROR(INDEX(Darbība,SMALL(IF(Mērķis=$F$2,ROW(Darbība)-MIN(ROW(Darbība))+1),ROWS($B$3:B39)))&CHAR(10),\"\")","v":""},null,{"$f":"IFERROR(INDEX(Darbība,SMALL(IF(Mērķis=$H$2,ROW(Darbība)-MIN(ROW(Darbība))+1),ROWS($B$3:B39)))&CHAR(10),\"\")","v":""}]
[null,{"$f":"IFERROR(INDEX(Darbība,SMALL(IF(Mērķis=$B$2,ROW(Darbība)-MIN(ROW(Darbība))+1),ROWS($B$3:B40)))&\" \"&CHAR(10)&(INDEX(Rezultāts,SMALL(IF(Mērķis=$B$2,ROW(Rezultāts)-MIN(ROW(Rezultāts))+1),ROWS($B$3:B40))))&CHAR(10),\"\")","v":""},null,{"$f":"IFERROR(INDEX(Darbība,SMALL(IF(Mērķis=$D$2,ROW(Darbība)-MIN(ROW(Darbība))+1),ROWS($B$3:B40)))&CHAR(10),\"\")","v":""},null,{"$f":"IFERROR(INDEX(Darbība,SMALL(IF(Mērķis=$F$2,ROW(Darbība)-MIN(ROW(Darbība))+1),ROWS($B$3:B40)))&CHAR(10),\"\")","v":""},null,{"$f":"IFERROR(INDEX(Darbība,SMALL(IF(Mērķis=$H$2,ROW(Darbība)-MIN(ROW(Darbība))+1),ROWS($B$3:B40)))&CHAR(10),\"\")","v":""}]
[null,{"$f":"IFERROR(INDEX(Darbība,SMALL(IF(Mērķis=$B$2,ROW(Darbība)-MIN(ROW(Darbība))+1),ROWS($B$3:B41)))&\" \"&CHAR(10)&(INDEX(Rezultāts,SMALL(IF(Mērķis=$B$2,ROW(Rezultāts)-MIN(ROW(Rezultāts))+1),ROWS($B$3:B41))))&CHAR(10),\"\")","v":""},null,{"$f":"IFERROR(INDEX(Darbība,SMALL(IF(Mērķis=$D$2,ROW(Darbība)-MIN(ROW(Darbība))+1),ROWS($B$3:B41)))&CHAR(10),\"\")","v":""},null,{"$f":"IFERROR(INDEX(Darbība,SMALL(IF(Mērķis=$F$2,ROW(Darbība)-MIN(ROW(Darbība))+1),ROWS($B$3:B41)))&CHAR(10),\"\")","v":""},null,{"$f":"IFERROR(INDEX(Darbība,SMALL(IF(Mērķis=$H$2,ROW(Darbība)-MIN(ROW(Darbība))+1),ROWS($B$3:B41)))&CHAR(10),\"\")","v":""}]
[null,{"$f":"IFERROR(INDEX(Darbība,SMALL(IF(Mērķis=$B$2,ROW(Darbība)-MIN(ROW(Darbība))+1),ROWS($B$3:B42)))&\" \"&CHAR(10)&(INDEX(Rezultāts,SMALL(IF(Mērķis=$B$2,ROW(Rezultāts)-MIN(ROW(Rezultāts))+1),ROWS($B$3:B42))))&CHAR(10),\"\")","v":""},null,{"$f":"IFERROR(INDEX(Darbība,SMALL(IF(Mērķis=$D$2,ROW(Darbība)-MIN(ROW(Darbība))+1),ROWS($B$3:B42)))&CHAR(10),\"\")","v":""},null,{"$f":"IFERROR(INDEX(Darbība,SMALL(IF(Mērķis=$F$2,ROW(Darbība)-MIN(ROW(Darbība))+1),ROWS($B$3:B42)))&CHAR(10),\"\")","v":""},null,{"$f":"IFERROR(INDEX(Darbība,SMALL(IF(Mērķis=$H$2,ROW(Darbība)-MIN(ROW(Darbība))+1),ROWS($B$3:B42)))&CHAR(10),\"\")","v":""}]
[null,{"$f":"IFERROR(INDEX(Darbība,SMALL(IF(Mērķis=$B$2,ROW(Darbība)-MIN(ROW(Darbība))+1),ROWS($B$3:B43)))&\" \"&CHAR(10)&(INDEX(Rezultāts,SMALL(IF(Mērķis=$B$2,ROW(Rezultāts)-MIN(ROW(Rezultāts))+1),ROWS($B$3:B43))))&CHAR(10),\"\")","v":""},null,{"$f":"IFERROR(INDEX(Darbība,SMALL(IF(Mērķis=$D$2,ROW(Darbība)-MIN(ROW(Darbība))+1),ROWS($B$3:B43)))&CHAR(10),\"\")","v":""},null,{"$f":"IFERROR(INDEX(Darbība,SMALL(IF(Mērķis=$F$2,ROW(Darbība)-MIN(ROW(Darbība))+1),ROWS($B$3:B43)))&CHAR(10),\"\")","v":""},null,{"$f":"IFERROR(INDEX(Darbība,SMALL(IF(Mērķis=$H$2,ROW(Darbība)-MIN(ROW(Darbība))+1),ROWS($B$3:B43)))&CHAR(10),\"\")","v":""}]
[null,{"$f":"IFERROR(INDEX(Darbība,SMALL(IF(Mērķis=$B$2,ROW(Darbība)-MIN(ROW(Darbība))+1),ROWS($B$3:B44)))&\" \"&CHAR(10)&(INDEX(Rezultāts,SMALL(IF(Mērķis=$B$2,ROW(Rezultāts)-MIN(ROW(Rezultāts))+1),ROWS($B$3:B44))))&CHAR(10),\"\")","v":""},null,{"$f":"IFERROR(INDEX(Darbība,SMALL(IF(Mērķis=$D$2,ROW(Darbība)-MIN(ROW(Darbība))+1),ROWS($B$3:B44)))&CHAR(10),\"\")","v":""},null,{"$f":"IFERROR(INDEX(Darbība,SMALL(IF(Mērķis=$F$2,ROW(Darbība)-MIN(ROW(Darbība))+1),ROWS($B$3:B44)))&CHAR(10),\"\")","v":""},null,{"$f":"IFERROR(INDEX(Darbība,SMALL(IF(Mērķis=$H$2,ROW(Darbība)-MIN(ROW(Darbība))+1),ROWS($B$3:B44)))&CHAR(10),\"\")","v":""}]
[null,{"$f":"IFERROR(INDEX(Darbība,SMALL(IF(Mērķis=$B$2,ROW(Darbība)-MIN(ROW(Darbība))+1),ROWS($B$3:B45)))&\" \"&CHAR(10)&(INDEX(Rezultāts,SMALL(IF(Mērķis=$B$2,ROW(Rezultāts)-MIN(ROW(Rezultāts))+1),ROWS($B$3:B45))))&CHAR(10),\"\")","v":""},null,{"$f":"IFERROR(INDEX(Darbība,SMALL(IF(Mērķis=$D$2,ROW(Darbība)-MIN(ROW(Darbība))+1),ROWS($B$3:B45)))&CHAR(10),\"\")","v":""},null,{"$f":"IFERROR(INDEX(Darbība,SMALL(IF(Mērķis=$F$2,ROW(Darbība)-MIN(ROW(Darbība))+1),ROWS($B$3:B45)))&CHAR(10),\"\")","v":""},null,{"$f":"IFERROR(INDEX(Darbība,SMALL(IF(Mērķis=$H$2,ROW(Darbība)-MIN(ROW(Darbība))+1),ROWS($B$3:B45)))&CHAR(10),\"\")","v":""}]
[null,{"$f":"IFERROR(INDEX(Darbība,SMALL(IF(Mērķis=$B$2,ROW(Darbība)-MIN(ROW(Darbība))+1),ROWS($B$3:B46)))&\" \"&CHAR(10)&(INDEX(Rezultāts,SMALL(IF(Mērķis=$B$2,ROW(Rezultāts)-MIN(ROW(Rezultāts))+1),ROWS($B$3:B46))))&CHAR(10),\"\")","v":""},null,{"$f":"IFERROR(INDEX(Darbība,SMALL(IF(Mērķis=$D$2,ROW(Darbība)-MIN(ROW(Darbība))+1),ROWS($B$3:B46)))&CHAR(10),\"\")","v":""},null,{"$f":"IFERROR(INDEX(Darbība,SMALL(IF(Mērķis=$F$2,ROW(Darbība)-MIN(ROW(Darbība))+1),ROWS($B$3:B46)))&CHAR(10),\"\")","v":""},null,{"$f":"IFERROR(INDEX(Darbība,SMALL(IF(Mērķis=$H$2,ROW(Darbība)-MIN(ROW(Darbība))+1),ROWS($B$3:B46)))&CHAR(10),\"\")","v":""}]
[null,{"$f":"IFERROR(INDEX(Darbība,SMALL(IF(Mērķis=$B$2,ROW(Darbība)-MIN(ROW(Darbība))+1),ROWS($B$3:B47)))&\" \"&CHAR(10)&(INDEX(Rezultāts,SMALL(IF(Mērķis=$B$2,ROW(Rezultāts)-MIN(ROW(Rezultāts))+1),ROWS($B$3:B47))))&CHAR(10),\"\")","v":""},null,{"$f":"IFERROR(INDEX(Darbība,SMALL(IF(Mērķis=$D$2,ROW(Darbība)-MIN(ROW(Darbība))+1),ROWS($B$3:B47)))&CHAR(10),\"\")","v":""},null,{"$f":"IFERROR(INDEX(Darbība,SMALL(IF(Mērķis=$F$2,ROW(Darbība)-MIN(ROW(Darbība))+1),ROWS($B$3:B47)))&CHAR(10),\"\")","v":""},null,{"$f":"IFERROR(INDEX(Darbība,SMALL(IF(Mērķis=$H$2,ROW(Darbība)-MIN(ROW(Darbība))+1),ROWS($B$3:B47)))&CHAR(10),\"\")","v":""}]
[null,{"$f":"IFERROR(INDEX(Darbība,SMALL(IF(Mērķis=$B$2,ROW(Darbība)-MIN(ROW(Darbība))+1),ROWS($B$3:B48)))&\" \"&CHAR(10)&(INDEX(Rezultāts,SMALL(IF(Mērķis=$B$2,ROW(Rezultāts)-MIN(ROW(Rezultāts))+1),ROWS($B$3:B48))))&CHAR(10),\"\")","v":""},null,{"$f":"IFERROR(INDEX(Darbība,SMALL(IF(Mērķis=$D$2,ROW(Darbība)-MIN(ROW(Darbība))+1),ROWS($B$3:B48)))&CHAR(10),\"\")","v":""},null,{"$f":"IFERROR(INDEX(Darbība,SMALL(IF(Mērķis=$F$2,ROW(Darbība)-MIN(ROW(Darbība))+1),ROWS($B$3:B48)))&CHAR(10),\"\")","v":""},null,{"$f":"IFERROR(INDEX(Darbība,SMALL(IF(Mērķis=$H$2,ROW(Darbība)-MIN(ROW(Darbība))+1),ROWS($B$3:B48)))&CHAR(10),\"\")","v":""}]
[null,{"$f":"IFERROR(INDEX(Darbība,SMALL(IF(Mērķis=$B$2,ROW(Darbība)-MIN(ROW(Darbība))+1),ROWS($B$3:B49)))&\" \"&CHAR(10)&(INDEX(Rezultāts,SMALL(IF(Mērķis=$B$2,ROW(Rezultāts)-MIN(ROW(Rezultāts))+1),ROWS($B$3:B49))))&CHAR(10),\"\")","v":""},null,{"$f":"IFERROR(INDEX(Darbība,SMALL(IF(Mērķis=$D$2,ROW(Darbība)-MIN(ROW(Darbība))+1),ROWS($B$3:B49)))&CHAR(10),\"\")","v":""},null,{"$f":"IFERROR(INDEX(Darbība,SMALL(IF(Mērķis=$F$2,ROW(Darbība)-MIN(ROW(Darbība))+1),ROWS($B$3:B49)))&CHAR(10),\"\")","v":""},null,{"$f":"IFERROR(INDEX(Darbība,SMALL(IF(Mērķis=$H$2,ROW(Darbība)-MIN(ROW(Darbība))+1),ROWS($B$3:B49)))&CHAR(10),\"\")","v":""}]
[null,{"$f":"IFERROR(INDEX(Darbība,SMALL(IF(Mērķis=$B$2,ROW(Darbība)-MIN(ROW(Darbība))+1),ROWS($B$3:B50)))&\" \"&CHAR(10)&(INDEX(Rezultāts,SMALL(IF(Mērķis=$B$2,ROW(Rezultāts)-MIN(ROW(Rezultāts))+1),ROWS($B$3:B50))))&CHAR(10),\"\")","v":""},null,{"$f":"IFERROR(INDEX(Darbība,SMALL(IF(Mērķis=$D$2,ROW(Darbība)-MIN(ROW(Darbība))+1),ROWS($B$3:B50)))&CHAR(10),\"\")","v":""},null,{"$f":"IFERROR(INDEX(Darbība,SMALL(IF(Mērķis=$F$2,ROW(Darbība)-MIN(ROW(Darbība))+1),ROWS($B$3:B50)))&CHAR(10),\"\")","v":""},null,{"$f":"IFERROR(INDEX(Darbība,SMALL(IF(Mērķis=$H$2,ROW(Darbība)-MIN(ROW(Darbība))+1),ROWS($B$3:B50)))&CHAR(10),\"\")","v":""}]
[null,{"$f":"IFERROR(INDEX(Darbība,SMALL(IF(Mērķis=$B$2,ROW(Darbība)-MIN(ROW(Darbība))+1),ROWS($B$3:B51)))&\" \"&CHAR(10)&(INDEX(Rezultāts,SMALL(IF(Mērķis=$B$2,ROW(Rezultāts)-MIN(ROW(Rezultāts))+1),ROWS($B$3:B51))))&CHAR(10),\"\")","v":""},null,{"$f":"IFERROR(INDEX(Darbība,SMALL(IF(Mērķis=$D$2,ROW(Darbība)-MIN(ROW(Darbība))+1),ROWS($B$3:B51)))&CHAR(10),\"\")","v":""},null,{"$f":"IFERROR(INDEX(Darbība,SMALL(IF(Mērķis=$F$2,ROW(Darbība)-MIN(ROW(Darbība))+1),ROWS($B$3:B51)))&CHAR(10),\"\")","v":""},null,{"$f":"IFERROR(INDEX(Darbība,SMALL(IF(Mērķis=$H$2,ROW(Darbība)-MIN(ROW(Darbība))+1),ROWS($B$3:B51)))&CHAR(10),\"\")","v":""}]
[null,{"$f":"IFERROR(INDEX(Darbība,SMALL(IF(Mērķis=$B$2,ROW(Darbība)-MIN(ROW(Darbība))+1),ROWS($B$3:B52)))&\" \"&CHAR(10)&(INDEX(Rezultāts,SMALL(IF(Mērķis=$B$2,ROW(Rezultāts)-MIN(ROW(Rezultāts))+1),ROWS($B$3:B52))))&CHAR(10),\"\")","v":""},null,{"$f":"IFERROR(INDEX(Darbība,SMALL(IF(Mērķis=$D$2,ROW(Darbība)-MIN(ROW(Darbība))+1),ROWS($B$3:B52)))&CHAR(10),\"\")","v":""},null,{"$f":"IFERROR(INDEX(Darbība,SMALL(IF(Mērķis=$F$2,ROW(Darbība)-MIN(ROW(Darbība))+1),ROWS($B$3:B52)))&CHAR(10),\"\")","v":""},null,{"$f":"IFERROR(INDEX(Darbība,SMALL(IF(Mērķis=$H$2,ROW(Darbība)-MIN(ROW(Darbība))+1),ROWS($B$3:B52)))&CHAR(10),\"\")","v":""}]
[null,{"$f":"IFERROR(INDEX(Darbība,SMALL(IF(Mērķis=$B$2,ROW(Darbība)-MIN(ROW(Darbība))+1),ROWS($B$3:B53)))&\" \"&CHAR(10)&(INDEX(Rezultāts,SMALL(IF(Mērķis=$B$2,ROW(Rezultāts)-MIN(ROW(Rezultāts))+1),ROWS($B$3:B53))))&CHAR(10),\"\")","v":""},null,{"$f":"IFERROR(INDEX(Darbība,SMALL(IF(Mērķis=$D$2,ROW(Darbība)-MIN(ROW(Darbība))+1),ROWS($B$3:B53)))&CHAR(10),\"\")","v":""},null,{"$f":"IFERROR(INDEX(Darbība,SMALL(IF(Mērķis=$F$2,ROW(Darbība)-MIN(ROW(Darbība))+1),ROWS($B$3:B53)))&CHAR(10),\"\")","v":""},null,{"$f":"IFERROR(INDEX(Darbība,SMALL(IF(Mērķis=$H$2,ROW(Darbība)-MIN(ROW(Darbība))+1),ROWS($B$3:B53)))&CHAR(10),\"\")","v":""}]
[null,{"$f":"IFERROR(INDEX(Darbība,SMALL(IF(Mērķis=$B$2,ROW(Darbība)-MIN(ROW(Darbība))+1),ROWS($B$3:B54)))&\" \"&CHAR(10)&(INDEX(Rezultāts,SMALL(IF(Mērķis=$B$2,ROW(Rezultāts)-MIN(ROW(Rezultāts))+1),ROWS($B$3:B54))))&CHAR(10),\"\")","v":""},null,{"$f":"IFERROR(INDEX(Darbība,SMALL(IF(Mērķis=$D$2,ROW(Darbība)-MIN(ROW(Darbība))+1),ROWS($B$3:B54)))&CHAR(10),\"\")","v":""},null,{"$f":"IFERROR(INDEX(Darbība,SMALL(IF(Mērķis=$F$2,ROW(Darbība)-MIN(ROW(Darbība))+1),ROWS($B$3:B54)))&CHAR(10),\"\")","v":""},null,{"$f":"IFERROR(INDEX(Darbība,SMALL(IF(Mērķis=$H$2,ROW(Darbība)-MIN(ROW(Darbība))+1),ROWS($B$3:B54)))&CHAR(10),\"\")","v":""}]
[null,{"$f":"IFERROR(INDEX(Darbība,SMALL(IF(Mērķis=$B$2,ROW(Darbība)-MIN(ROW(Darbība))+1),ROWS($B$3:B55)))&\" \"&CHAR(10)&(INDEX(Rezultāts,SMALL(IF(Mērķis=$B$2,ROW(Rezultāts)-MIN(ROW(Rezultāts))+1),ROWS($B$3:B55))))&CHAR(10),\"\")","v":""},null,{"$f":"IFERROR(INDEX(Darbība,SMALL(IF(Mērķis=$D$2,ROW(Darbība)-MIN(ROW(Darbība))+1),ROWS($B$3:B55)))&CHAR(10),\"\")","v":""},null,{"$f":"IFERROR(INDEX(Darbība,SMALL(IF(Mērķis=$F$2,ROW(Darbība)-MIN(ROW(Darbība))+1),ROWS($B$3:B55)))&CHAR(10),\"\")","v":""},null,{"$f":"IFERROR(INDEX(Darbība,SMALL(IF(Mērķis=$H$2,ROW(Darbība)-MIN(ROW(Darbība))+1),ROWS($B$3:B55)))&CHAR(10),\"\")","v":""}]
[null,{"$f":"IFERROR(INDEX(Darbība,SMALL(IF(Mērķis=$B$2,ROW(Darbība)-MIN(ROW(Darbība))+1),ROWS($B$3:B56)))&\" \"&CHAR(10)&(INDEX(Rezultāts,SMALL(IF(Mērķis=$B$2,ROW(Rezultāts)-MIN(ROW(Rezultāts))+1),ROWS($B$3:B56))))&CHAR(10),\"\")","v":""},null,{"$f":"IFERROR(INDEX(Darbība,SMALL(IF(Mērķis=$D$2,ROW(Darbība)-MIN(ROW(Darbība))+1),ROWS($B$3:B56)))&CHAR(10),\"\")","v":""},null,{"$f":"IFERROR(INDEX(Darbība,SMALL(IF(Mērķis=$F$2,ROW(Darbība)-MIN(ROW(Darbība))+1),ROWS($B$3:B56)))&CHAR(10),\"\")","v":""},null,{"$f":"IFERROR(INDEX(Darbība,SMALL(IF(Mērķis=$H$2,ROW(Darbība)-MIN(ROW(Darbība))+1),ROWS($B$3:B56)))&CHAR(10),\"\")","v":""}]
[null,{"$f":"IFERROR(INDEX(Darbība,SMALL(IF(Mērķis=$B$2,ROW(Darbība)-MIN(ROW(Darbība))+1),ROWS($B$3:B57)))&\" \"&CHAR(10)&(INDEX(Rezultāts,SMALL(IF(Mērķis=$B$2,ROW(Rezultāts)-MIN(ROW(Rezultāts))+1),ROWS($B$3:B57))))&CHAR(10),\"\")","v":""},null,{"$f":"IFERROR(INDEX(Darbība,SMALL(IF(Mērķis=$D$2,ROW(Darbība)-MIN(ROW(Darbība))+1),ROWS($B$3:B57)))&CHAR(10),\"\")","v":""},null,{"$f":"IFERROR(INDEX(Darbība,SMALL(IF(Mērķis=$F$2,ROW(Darbība)-MIN(ROW(Darbība))+1),ROWS($B$3:B57)))&CHAR(10),\"\")","v":""},null,{"$f":"IFERROR(INDEX(Darbība,SMALL(IF(Mērķis=$H$2,ROW(Darbība)-MIN(ROW(Darbība))+1),ROWS($B$3:B57)))&CHAR(10),\"\")","v":""}]
[null,{"$f":"IFERROR(INDEX(Darbība,SMALL(IF(Mērķis=$B$2,ROW(Darbība)-MIN(ROW(Darbība))+1),ROWS($B$3:B58)))&\" \"&CHAR(10)&(INDEX(Rezultāts,SMALL(IF(Mērķis=$B$2,ROW(Rezultāts)-MIN(ROW(Rezultāts))+1),ROWS($B$3:B58))))&CHAR(10),\"\")","v":""},null,{"$f":"IFERROR(INDEX(Darbība,SMALL(IF(Mērķis=$D$2,ROW(Darbība)-MIN(ROW(Darbība))+1),ROWS($B$3:B58)))&CHAR(10),\"\")","v":""},null,{"$f":"IFERROR(INDEX(Darbība,SMALL(IF(Mērķis=$F$2,ROW(Darbība)-MIN(ROW(Darbība))+1),ROWS($B$3:B58)))&CHAR(10),\"\")","v":""},null,{"$f":"IFERROR(INDEX(Darbība,SMALL(IF(Mērķis=$H$2,ROW(Darbība)-MIN(ROW(Darbība))+1),ROWS($B$3:B58)))&CHAR(10),\"\")","v":""}]
[null,{"$f":"IFERROR(INDEX(Darbība,SMALL(IF(Mērķis=$B$2,ROW(Darbība)-MIN(ROW(Darbība))+1),ROWS($B$3:B59)))&\" \"&CHAR(10)&(INDEX(Rezultāts,SMALL(IF(Mērķis=$B$2,ROW(Rezultāts)-MIN(ROW(Rezultāts))+1),ROWS($B$3:B59))))&CHAR(10),\"\")","v":""},null,{"$f":"IFERROR(INDEX(Darbība,SMALL(IF(Mērķis=$D$2,ROW(Darbība)-MIN(ROW(Darbība))+1),ROWS($B$3:B59)))&CHAR(10),\"\")","v":""},null,{"$f":"IFERROR(INDEX(Darbība,SMALL(IF(Mērķis=$F$2,ROW(Darbība)-MIN(ROW(Darbība))+1),ROWS($B$3:B59)))&CHAR(10),\"\")","v":""},null,{"$f":"IFERROR(INDEX(Darbība,SMALL(IF(Mērķis=$H$2,ROW(Darbība)-MIN(ROW(Darbība))+1),ROWS($B$3:B59)))&CHAR(10),\"\")","v":""}]
[null,{"$f":"IFERROR(INDEX(Darbība,SMALL(IF(Mērķis=$B$2,ROW(Darbība)-MIN(ROW(Darbība))+1),ROWS($B$3:B60)))&\" \"&CHAR(10)&(INDEX(Rezultāts,SMALL(IF(Mērķis=$B$2,ROW(Rezultāts)-MIN(ROW(Rezultāts))+1),ROWS($B$3:B60))))&CHAR(10),\"\")","v":""},null,{"$f":"IFERROR(INDEX(Darbība,SMALL(IF(Mērķis=$D$2,ROW(Darbība)-MIN(ROW(Darbība))+1),ROWS($B$3:B60)))&CHAR(10),\"\")","v":""},null,{"$f":"IFERROR(INDEX(Darbība,SMALL(IF(Mērķis=$F$2,ROW(Darbība)-MIN(ROW(Darbība))+1),ROWS($B$3:B60)))&CHAR(10),\"\")","v":""},null,{"$f":"IFERROR(INDEX(Darbība,SMALL(IF(Mērķis=$H$2,ROW(Darbība)-MIN(ROW(Darbība))+1),ROWS($B$3:B60)))&CHAR(10),\"\")","v":""}]
[null,{"$f":"IFERROR(INDEX(Darbība,SMALL(IF(Mērķis=$B$2,ROW(Darbība)-MIN(ROW(Darbība))+1),ROWS($B$3:B61)))&\" \"&CHAR(10)&(INDEX(Rezultāts,SMALL(IF(Mērķis=$B$2,ROW(Rezultāts)-MIN(ROW(Rezultāts))+1),ROWS($B$3:B61))))&CHAR(10),\"\")","v":""},null,{"$f":"IFERROR(INDEX(Darbība,SMALL(IF(Mērķis=$D$2,ROW(Darbība)-MIN(ROW(Darbība))+1),ROWS($B$3:B61)))&CHAR(10),\"\")","v":""},null,{"$f":"IFERROR(INDEX(Darbība,SMALL(IF(Mērķis=$F$2,ROW(Darbība)-MIN(ROW(Darbība))+1),ROWS($B$3:B61)))&CHAR(10),\"\")","v":""},null,{"$f":"IFERROR(INDEX(Darbība,SMALL(IF(Mērķis=$H$2,ROW(Darbība)-MIN(ROW(Darbība))+1),ROWS($B$3:B61)))&CHAR(10),\"\")","v":""}]
[null,{"$f":"IFERROR(INDEX(Darbība,SMALL(IF(Mērķis=$B$2,ROW(Darbība)-MIN(ROW(Darbība))+1),ROWS($B$3:B62)))&\" \"&CHAR(10)&(INDEX(Rezultāts,SMALL(IF(Mērķis=$B$2,ROW(Rezultāts)-MIN(ROW(Rezultāts))+1),ROWS($B$3:B62))))&CHAR(10),\"\")","v":""},null,{"$f":"IFERROR(INDEX(Darbība,SMALL(IF(Mērķis=$D$2,ROW(Darbība)-MIN(ROW(Darbība))+1),ROWS($B$3:B62)))&CHAR(10),\"\")","v":""},null,{"$f":"IFERROR(INDEX(Darbība,SMALL(IF(Mērķis=$F$2,ROW(Darbība)-MIN(ROW(Darbība))+1),ROWS($B$3:B62)))&CHAR(10),\"\")","v":""},null,{"$f":"IFERROR(INDEX(Darbība,SMALL(IF(Mērķis=$H$2,ROW(Darbība)-MIN(ROW(Darbība))+1),ROWS($B$3:B62)))&CHAR(10),\"\")","v":""}]
[null,{"$f":"IFERROR(INDEX(Darbība,SMALL(IF(Mērķis=$B$2,ROW(Darbība)-MIN(ROW(Darbība))+1),ROWS($B$3:B63)))&\" \"&CHAR(10)&(INDEX(Rezultāts,SMALL(IF(Mērķis=$B$2,ROW(Rezultāts)-MIN(ROW(Rezultāts))+1),ROWS($B$3:B63))))&CHAR(10),\"\")","v":""},null,{"$f":"IFERROR(INDEX(Darbība,SMALL(IF(Mērķis=$D$2,ROW(Darbība)-MIN(ROW(Darbība))+1),ROWS($B$3:B63)))&CHAR(10),\"\")","v":""},null,{"$f":"IFERROR(INDEX(Darbība,SMALL(IF(Mērķis=$F$2,ROW(Darbība)-MIN(ROW(Darbība))+1),ROWS($B$3:B63)))&CHAR(10),\"\")","v":""},null,{"$f":"IFERROR(INDEX(Darbība,SMALL(IF(Mērķis=$H$2,ROW(Darbība)-MIN(ROW(Darbība))+1),ROWS($B$3:B63)))&CHAR(10),\"\")","v":""}]
[null,{"$f":"IFERROR(INDEX(Darbība,SMALL(IF(Mērķis=$B$2,ROW(Darbība)-MIN(ROW(Darbība))+1),ROWS($B$3:B64)))&\" \"&CHAR(10)&(INDEX(Rezultāts,SMALL(IF(Mērķis=$B$2,ROW(Rezultāts)-MIN(ROW(Rezultāts))+1),ROWS($B$3:B64))))&CHAR(10),\"\")","v":""},null,{"$f":"IFERROR(INDEX(Darbība,SMALL(IF(Mērķis=$D$2,ROW(Darbība)-MIN(ROW(Darbība))+1),ROWS($B$3:B64)))&CHAR(10),\"\")","v":""},null,{"$f":"IFERROR(INDEX(Darbība,SMALL(IF(Mērķis=$F$2,ROW(Darbība)-MIN(ROW(Darbība))+1),ROWS($B$3:B64)))&CHAR(10),\"\")","v":""},null,{"$f":"IFERROR(INDEX(Darbība,SMALL(IF(Mērķis=$H$2,ROW(Darbība)-MIN(ROW(Darbība))+1),ROWS($B$3:B64)))&CHAR(10),\"\")","v":""}]
[null,{"$f":"IFERROR(INDEX(Darbība,SMALL(IF(Mērķis=$B$2,ROW(Darbība)-MIN(ROW(Darbība))+1),ROWS($B$3:B65)))&\" \"&CHAR(10)&(INDEX(Rezultāts,SMALL(IF(Mērķis=$B$2,ROW(Rezultāts)-MIN(ROW(Rezultāts))+1),ROWS($B$3:B65))))&CHAR(10),\"\")","v":""},null,{"$f":"IFERROR(INDEX(Darbība,SMALL(IF(Mērķis=$D$2,ROW(Darbība)-MIN(ROW(Darbība))+1),ROWS($B$3:B65)))&CHAR(10),\"\")","v":""},null,{"$f":"IFERROR(INDEX(Darbība,SMALL(IF(Mērķis=$F$2,ROW(Darbība)-MIN(ROW(Darbība))+1),ROWS($B$3:B65)))&CHAR(10),\"\")","v":""},null,{"$f":"IFERROR(INDEX(Darbība,SMALL(IF(Mērķis=$H$2,ROW(Darbība)-MIN(ROW(Darbība))+1),ROWS($B$3:B65)))&CHAR(10),\"\")","v":""}]
[null,{"$f":"IFERROR(INDEX(Darbība,SMALL(IF(Mērķis=$B$2,ROW(Darbība)-MIN(ROW(Darbība))+1),ROWS($B$3:B66)))&\" \"&CHAR(10)&(INDEX(Rezultāts,SMALL(IF(Mērķis=$B$2,ROW(Rezultāts)-MIN(ROW(Rezultāts))+1),ROWS($B$3:B66))))&CHAR(10),\"\")","v":""},null,{"$f":"IFERROR(INDEX(Darbība,SMALL(IF(Mērķis=$D$2,ROW(Darbība)-MIN(ROW(Darbība))+1),ROWS($B$3:B66)))&CHAR(10),\"\")","v":""},null,{"$f":"IFERROR(INDEX(Darbība,SMALL(IF(Mērķis=$F$2,ROW(Darbība)-MIN(ROW(Darbība))+1),ROWS($B$3:B66)))&CHAR(10),\"\")","v":""},null,{"$f":"IFERROR(INDEX(Darbība,SMALL(IF(Mērķis=$H$2,ROW(Darbība)-MIN(ROW(Darbība))+1),ROWS($B$3:B66)))&CHAR(10),\"\")","v":""}]
[null,{"$f":"IFERROR(INDEX(Darbība,SMALL(IF(Mērķis=$B$2,ROW(Darbība)-MIN(ROW(Darbība))+1),ROWS($B$3:B67)))&\" \"&CHAR(10)&(INDEX(Rezultāts,SMALL(IF(Mērķis=$B$2,ROW(Rezultāts)-MIN(ROW(Rezultāts))+1),ROWS($B$3:B67))))&CHAR(10),\"\")","v":""},null,{"$f":"IFERROR(INDEX(Darbība,SMALL(IF(Mērķis=$D$2,ROW(Darbība)-MIN(ROW(Darbība))+1),ROWS($B$3:B67)))&CHAR(10),\"\")","v":""},null,{"$f":"IFERROR(INDEX(Darbība,SMALL(IF(Mērķis=$F$2,ROW(Darbība)-MIN(ROW(Darbība))+1),ROWS($B$3:B67)))&CHAR(10),\"\")","v":""},null,{"$f":"IFERROR(INDEX(Darbība,SMALL(IF(Mērķis=$H$2,ROW(Darbība)-MIN(ROW(Darbība))+1),ROWS($B$3:B67)))&CHAR(10),\"\")","v":""}]
[null,{"$f":"IFERROR(INDEX(Darbība,SMALL(IF(Mērķis=$B$2,ROW(Darbība)-MIN(ROW(Darbība))+1),ROWS($B$3:B68)))&\" \"&CHAR(10)&(INDEX(Rezultāts,SMALL(IF(Mērķis=$B$2,ROW(Rezultāts)-MIN(ROW(Rezultāts))+1),ROWS($B$3:B68))))&CHAR(10),\"\")","v":""},null,{"$f":"IFERROR(INDEX(Darbība,SMALL(IF(Mērķis=$D$2,ROW(Darbība)-MIN(ROW(Darbība))+1),ROWS($B$3:B68)))&CHAR(10),\"\")","v":""},null,{"$f":"IFERROR(INDEX(Darbība,SMALL(IF(Mērķis=$F$2,ROW(Darbība)-MIN(ROW(Darbība))+1),ROWS($B$3:B68)))&CHAR(10),\"\")","v":""},null,{"$f":"IFERROR(INDEX(Darbība,SMALL(IF(Mērķis=$H$2,ROW(Darbība)-MIN(ROW(Darbība))+1),ROWS($B$3:B68)))&CHAR(10),\"\")","v":""}]
[null,{"$f":"IFERROR(INDEX(Darbība,SMALL(IF(Mērķis=$B$2,ROW(Darbība)-MIN(ROW(Darbība))+1),ROWS($B$3:B69)))&\" \"&CHAR(10)&(INDEX(Rezultāts,SMALL(IF(Mērķis=$B$2,ROW(Rezultāts)-MIN(ROW(Rezultāts))+1),ROWS($B$3:B69))))&CHAR(10),\"\")","v":""},null,{"$f":"IFERROR(INDEX(Darbība,SMALL(IF(Mērķis=$D$2,ROW(Darbība)-MIN(ROW(Darbība))+1),ROWS($B$3:B69)))&CHAR(10),\"\")","v":""},null,{"$f":"IFERROR(INDEX(Darbība,SMALL(IF(Mērķis=$F$2,ROW(Darbība)-MIN(ROW(Darbība))+1),ROWS($B$3:B69)))&CHAR(10),\"\")","v":""},null,{"$f":"IFERROR(INDEX(Darbība,SMALL(IF(Mērķis=$H$2,ROW(Darbība)-MIN(ROW(Darbība))+1),ROWS($B$3:B69)))&CHAR(10),\"\")","v":""}]
[null,{"$f":"IFERROR(INDEX(Darbība,SMALL(IF(Mērķis=$B$2,ROW(Darbība)-MIN(ROW(Darbība))+1),ROWS($B$3:B70)))&\" \"&CHAR(10)&(INDEX(Rezultāts,SMALL(IF(Mērķis=$B$2,ROW(Rezultāts)-MIN(ROW(Rezultāts))+1),ROWS($B$3:B70))))&CHAR(10),\"\")","v":""},null,{"$f":"IFERROR(INDEX(Darbība,SMALL(IF(Mērķis=$D$2,ROW(Darbība)-MIN(ROW(Darbība))+1),ROWS($B$3:B70)))&CHAR(10),\"\")","v":""},null,{"$f":"IFERROR(INDEX(Darbība,SMALL(IF(Mērķis=$F$2,ROW(Darbība)-MIN(ROW(Darbība))+1),ROWS($B$3:B70)))&CHAR(10),\"\")","v":""},null,{"$f":"IFERROR(INDEX(Darbība,SMALL(IF(Mērķis=$H$2,ROW(Darbība)-MIN(ROW(Darbība))+1),ROWS($B$3:B70)))&CHAR(10),\"\")","v":""}]
[null,{"$f":"IFERROR(INDEX(Darbība,SMALL(IF(Mērķis=$B$2,ROW(Darbība)-MIN(ROW(Darbība))+1),ROWS($B$3:B71)))&\" \"&CHAR(10)&(INDEX(Rezultāts,SMALL(IF(Mērķis=$B$2,ROW(Rezultāts)-MIN(ROW(Rezultāts))+1),ROWS($B$3:B71))))&CHAR(10),\"\")","v":""},null,{"$f":"IFERROR(INDEX(Darbība,SMALL(IF(Mērķis=$D$2,ROW(Darbība)-MIN(ROW(Darbība))+1),ROWS($B$3:B71)))&CHAR(10),\"\")","v":""},null,{"$f":"IFERROR(INDEX(Darbība,SMALL(IF(Mērķis=$F$2,ROW(Darbība)-MIN(ROW(Darbība))+1),ROWS($B$3:B71)))&CHAR(10),\"\")","v":""},null,{"$f":"IFERROR(INDEX(Darbība,SMALL(IF(Mērķis=$H$2,ROW(Darbība)-MIN(ROW(Darbība))+1),ROWS($B$3:B71)))&CHAR(10),\"\")","v":""}]
[null,{"$f":"IFERROR(INDEX(Darbība,SMALL(IF(Mērķis=$B$2,ROW(Darbība)-MIN(ROW(Darbība))+1),ROWS($B$3:B72)))&\" \"&CHAR(10)&(INDEX(Rezultāts,SMALL(IF(Mērķis=$B$2,ROW(Rezultāts)-MIN(ROW(Rezultāts))+1),ROWS($B$3:B72))))&CHAR(10),\"\")","v":""},null,{"$f":"IFERROR(INDEX(Darbība,SMALL(IF(Mērķis=$D$2,ROW(Darbība)-MIN(ROW(Darbība))+1),ROWS($B$3:B72)))&CHAR(10),\"\")","v":""},null,{"$f":"IFERROR(INDEX(Darbība,SMALL(IF(Mērķis=$F$2,ROW(Darbība)-MIN(ROW(Darbība))+1),ROWS($B$3:B72)))&CHAR(10),\"\")","v":""},null,{"$f":"IFERROR(INDEX(Darbība,SMALL(IF(Mērķis=$H$2,ROW(Darbība)-MIN(ROW(Darbība))+1),ROWS($B$3:B72)))&CHAR(10),\"\")","v":""}]
[null,{"$f":"IFERROR(INDEX(Darbība,SMALL(IF(Mērķis=$B$2,ROW(Darbība)-MIN(ROW(Darbība))+1),ROWS($B$3:B73)))&\" \"&CHAR(10)&(INDEX(Rezultāts,SMALL(IF(Mērķis=$B$2,ROW(Rezultāts)-MIN(ROW(Rezultāts))+1),ROWS($B$3:B73))))&CHAR(10),\"\")","v":""},null,{"$f":"IFERROR(INDEX(Darbība,SMALL(IF(Mērķis=$D$2,ROW(Darbība)-MIN(ROW(Darbība))+1),ROWS($B$3:B73)))&CHAR(10),\"\")","v":""},null,{"$f":"IFERROR(INDEX(Darbība,SMALL(IF(Mērķis=$F$2,ROW(Darbība)-MIN(ROW(Darbība))+1),ROWS($B$3:B73)))&CHAR(10),\"\")","v":""},null,{"$f":"IFERROR(INDEX(Darbība,SMALL(IF(Mērķis=$H$2,ROW(Darbība)-MIN(ROW(Darbība))+1),ROWS($B$3:B73)))&CHAR(10),\"\")","v":""}]
[null,{"$f":"IFERROR(INDEX(Darbība,SMALL(IF(Mērķis=$B$2,ROW(Darbība)-MIN(ROW(Darbība))+1),ROWS($B$3:B74)))&\" \"&CHAR(10)&(INDEX(Rezultāts,SMALL(IF(Mērķis=$B$2,ROW(Rezultāts)-MIN(ROW(Rezultāts))+1),ROWS($B$3:B74))))&CHAR(10),\"\")","v":""},null,{"$f":"IFERROR(INDEX(Darbība,SMALL(IF(Mērķis=$D$2,ROW(Darbība)-MIN(ROW(Darbība))+1),ROWS($B$3:B74)))&CHAR(10),\"\")","v":""},null,{"$f":"IFERROR(INDEX(Darbība,SMALL(IF(Mērķis=$F$2,ROW(Darbība)-MIN(ROW(Darbība))+1),ROWS($B$3:B74)))&CHAR(10),\"\")","v":""},null,{"$f":"IFERROR(INDEX(Darbība,SMALL(IF(Mērķis=$H$2,ROW(Darbība)-MIN(ROW(Darbība))+1),ROWS($B$3:B74)))&CHAR(10),\"\")","v":""}]
[null,{"$f":"IFERROR(INDEX(Darbība,SMALL(IF(Mērķis=$B$2,ROW(Darbība)-MIN(ROW(Darbība))+1),ROWS($B$3:B75)))&\" \"&CHAR(10)&(INDEX(Rezultāts,SMALL(IF(Mērķis=$B$2,ROW(Rezultāts)-MIN(ROW(Rezultāts))+1),ROWS($B$3:B75))))&CHAR(10),\"\")","v":""},null,{"$f":"IFERROR(INDEX(Darbība,SMALL(IF(Mērķis=$D$2,ROW(Darbība)-MIN(ROW(Darbība))+1),ROWS($B$3:B75)))&CHAR(10),\"\")","v":""},null,{"$f":"IFERROR(INDEX(Darbība,SMALL(IF(Mērķis=$F$2,ROW(Darbība)-MIN(ROW(Darbība))+1),ROWS($B$3:B75)))&CHAR(10),\"\")","v":""},null,{"$f":"IFERROR(INDEX(Darbība,SMALL(IF(Mērķis=$H$2,ROW(Darbība)-MIN(ROW(Darbība))+1),ROWS($B$3:B75)))&CHAR(10),\"\")","v":""}]
[null,{"$f":"IFERROR(INDEX(Darbība,SMALL(IF(Mērķis=$B$2,ROW(Darbība)-MIN(ROW(Darbība))+1),ROWS($B$3:B76)))&\" \"&CHAR(10)&(INDEX(Rezultāts,SMALL(IF(Mērķis=$B$2,ROW(Rezultāts)-MIN(ROW(Rezultāts))+1),ROWS($B$3:B76))))&CHAR(10),\"\")","v":""},null,{"$f":"IFERROR(INDEX(Darbība,SMALL(IF(Mērķis=$D$2,ROW(Darbība)-MIN(ROW(Darbība))+1),ROWS($B$3:B76)))&CHAR(10),\"\")","v":""},null,{"$f":"IFERROR(INDEX(Darbība,SMALL(IF(Mērķis=$F$2,ROW(Darbība)-MIN(ROW(Darbība))+1),ROWS($B$3:B76)))&CHAR(10),\"\")","v":""},null,{"$f":"IFERROR(INDEX(Darbība,SMALL(IF(Mērķis=$H$2,ROW(Darbība)-MIN(ROW(Darbība))+1),ROWS($B$3:B76)))&CHAR(10),\"\")","v":""}]
[null,{"$f":"IFERROR(INDEX(Darbība,SMALL(IF(Mērķis=$B$2,ROW(Darbība)-MIN(ROW(Darbība))+1),ROWS($B$3:B77)))&\" \"&CHAR(10)&(INDEX(Rezultāts,SMALL(IF(Mērķis=$B$2,ROW(Rezultāts)-MIN(ROW(Rezultāts))+1),ROWS($B$3:B77))))&CHAR(10),\"\")","v":""},null,{"$f":"IFERROR(INDEX(Darbība,SMALL(IF(Mērķis=$D$2,ROW(Darbība)-MIN(ROW(Darbība))+1),ROWS($B$3:B77)))&CHAR(10),\"\")","v":""},null,{"$f":"IFERROR(INDEX(Darbība,SMALL(IF(Mērķis=$F$2,ROW(Darbība)-MIN(ROW(Darbība))+1),ROWS($B$3:B77)))&CHAR(10),\"\")","v":""},null,{"$f":"IFERROR(INDEX(Darbība,SMALL(IF(Mērķis=$H$2,ROW(Darbība)-MIN(ROW(Darbība))+1),ROWS($B$3:B77)))&CHAR(10),\"\")","v":""}]
[null,{"$f":"IFERROR(INDEX(Darbība,SMALL(IF(Mērķis=$B$2,ROW(Darbība)-MIN(ROW(Darbība))+1),ROWS($B$3:B78)))&\" \"&CHAR(10)&(INDEX(Rezultāts,SMALL(IF(Mērķis=$B$2,ROW(Rezultāts)-MIN(ROW(Rezultāts))+1),ROWS($B$3:B78))))&CHAR(10),\"\")","v":""},null,{"$f":"IFERROR(INDEX(Darbība,SMALL(IF(Mērķis=$D$2,ROW(Darbība)-MIN(ROW(Darbība))+1),ROWS($B$3:B78)))&CHAR(10),\"\")","v":""},null,{"$f":"IFERROR(INDEX(Darbība,SMALL(IF(Mērķis=$F$2,ROW(Darbība)-MIN(ROW(Darbība))+1),ROWS($B$3:B78)))&CHAR(10),\"\")","v":""},null,{"$f":"IFERROR(INDEX(Darbība,SMALL(IF(Mērķis=$H$2,ROW(Darbība)-MIN(ROW(Darbība))+1),ROWS($B$3:B78)))&CHAR(10),\"\")","v":""}]
[null,{"$f":"IFERROR(INDEX(Darbība,SMALL(IF(Mērķis=$B$2,ROW(Darbība)-MIN(ROW(Darbība))+1),ROWS($B$3:B79)))&\" \"&CHAR(10)&(INDEX(Rezultāts,SMALL(IF(Mērķis=$B$2,ROW(Rezultāts)-MIN(ROW(Rezultāts))+1),ROWS($B$3:B79))))&CHAR(10),\"\")","v":""},null,{"$f":"IFERROR(INDEX(Darbība,SMALL(IF(Mērķis=$D$2,ROW(Darbība)-MIN(ROW(Darbība))+1),ROWS($B$3:B79)))&CHAR(10),\"\")","v":""},null,{"$f":"IFERROR(INDEX(Darbība,SMALL(IF(Mērķis=$F$2,ROW(Darbība)-MIN(ROW(Darbība))+1),ROWS($B$3:B79)))&CHAR(10),\"\")","v":""},null,{"$f":"IFERROR(INDEX(Darbība,SMALL(IF(Mērķis=$H$2,ROW(Darbība)-MIN(ROW(Darbība))+1),ROWS($B$3:B79)))&CHAR(10),\"\")","v":""}]
[null,{"$f":"IFERROR(INDEX(Darbība,SMALL(IF(Mērķis=$B$2,ROW(Darbība)-MIN(ROW(Darbība))+1),ROWS($B$3:B80)))&\" \"&CHAR(10)&(INDEX(Rezultāts,SMALL(IF(Mērķis=$B$2,ROW(Rezultāts)-MIN(ROW(Rezultāts))+1),ROWS($B$3:B80))))&CHAR(10),\"\")","v":""},null,{"$f":"IFERROR(INDEX(Darbība,SMALL(IF(Mērķis=$D$2,ROW(Darbība)-MIN(ROW(Darbība))+1),ROWS($B$3:B80)))&CHAR(10),\"\")","v":""},null,{"$f":"IFERROR(INDEX(Darbība,SMALL(IF(Mērķis=$F$2,ROW(Darbība)-MIN(ROW(Darbība))+1),ROWS($B$3:B80)))&CHAR(10),\"\")","v":""},null,{"$f":"IFERROR(INDEX(Darbība,SMALL(IF(Mērķis=$H$2,ROW(Darbība)-MIN(ROW(Darbība))+1),ROWS($B$3:B80)))&CHAR(10),\"\")","v":""}]
[null,{"$f":"IFERROR(INDEX(Darbība,SMALL(IF(Mērķis=$B$2,ROW(Darbība)-MIN(ROW(Darbība))+1),ROWS($B$3:B81)))&\" \"&CHAR(10)&(INDEX(Rezultāts,SMALL(IF(Mērķis=$B$2,ROW(Rezultāts)-MIN(ROW(Rezultāts))+1),ROWS($B$3:B81))))&CHAR(10),\"\")","v":""},null,{"$f":"IFERROR(INDEX(Darbība,SMALL(IF(Mērķis=$D$2,ROW(Darbība)-MIN(ROW(Darbība))+1),ROWS($B$3:B81)))&CHAR(10),\"\")","v":""},null,{"$f":"IFERROR(INDEX(Darbība,SMALL(IF(Mērķis=$F$2,ROW(Darbība)-MIN(ROW(Darbība))+1),ROWS($B$3:B81)))&CHAR(10),\"\")","v":""},null,{"$f":"IFERROR(INDEX(Darbība,SMALL(IF(Mērķis=$H$2,ROW(Darbība)-MIN(ROW(Darbība))+1),ROWS($B$3:B81)))&CHAR(10),\"\")","v":""}]
[null,{"$f":"IFERROR(INDEX(Darbība,SMALL(IF(Mērķis=$B$2,ROW(Darbība)-MIN(ROW(Darbība))+1),ROWS($B$3:B82)))&\" \"&CHAR(10)&(INDEX(Rezultāts,SMALL(IF(Mērķis=$B$2,ROW(Rezultāts)-MIN(ROW(Rezultāts))+1),ROWS($B$3:B82))))&CHAR(10),\"\")","v":""},null,{"$f":"IFERROR(INDEX(Darbība,SMALL(IF(Mērķis=$D$2,ROW(Darbība)-MIN(ROW(Darbība))+1),ROWS($B$3:B82)))&CHAR(10),\"\")","v":""},null,{"$f":"IFERROR(INDEX(Darbība,SMALL(IF(Mērķis=$F$2,ROW(Darbība)-MIN(ROW(Darbība))+1),ROWS($B$3:B82)))&CHAR(10),\"\")","v":""},null,{"$f":"IFERROR(INDEX(Darbība,SMALL(IF(Mērķis=$H$2,ROW(Darbība)-MIN(ROW(Darbība))+1),ROWS($B$3:B82)))&CHAR(10),\"\")","v":""}]
[null,{"$f":"IFERROR(INDEX(Darbība,SMALL(IF(Mērķis=$B$2,ROW(Darbība)-MIN(ROW(Darbība))+1),ROWS($B$3:B83)))&\" \"&CHAR(10)&(INDEX(Rezultāts,SMALL(IF(Mērķis=$B$2,ROW(Rezultāts)-MIN(ROW(Rezultāts))+1),ROWS($B$3:B83))))&CHAR(10),\"\")","v":""},null,{"$f":"IFERROR(INDEX(Darbība,SMALL(IF(Mērķis=$D$2,ROW(Darbība)-MIN(ROW(Darbība))+1),ROWS($B$3:B83)))&CHAR(10),\"\")","v":""},null,{"$f":"IFERROR(INDEX(Darbība,SMALL(IF(Mērķis=$F$2,ROW(Darbība)-MIN(ROW(Darbība))+1),ROWS($B$3:B83)))&CHAR(10),\"\")","v":""},null,{"$f":"IFERROR(INDEX(Darbība,SMALL(IF(Mērķis=$H$2,ROW(Darbība)-MIN(ROW(Darbība))+1),ROWS($B$3:B83)))&CHAR(10),\"\")","v":""}]
[null,{"$f":"IFERROR(INDEX(Darbība,SMALL(IF(Mērķis=$B$2,ROW(Darbība)-MIN(ROW(Darbība))+1),ROWS($B$3:B84)))&\" \"&CHAR(10)&(INDEX(Rezultāts,SMALL(IF(Mērķis=$B$2,ROW(Rezultāts)-MIN(ROW(Rezultāts))+1),ROWS($B$3:B84))))&CHAR(10),\"\")","v":""},null,{"$f":"IFERROR(INDEX(Darbība,SMALL(IF(Mērķis=$D$2,ROW(Darbība)-MIN(ROW(Darbība))+1),ROWS($B$3:B84)))&CHAR(10),\"\")","v":""},null,{"$f":"IFERROR(INDEX(Darbība,SMALL(IF(Mērķis=$F$2,ROW(Darbība)-MIN(ROW(Darbība))+1),ROWS($B$3:B84)))&CHAR(10),\"\")","v":""},null,{"$f":"IFERROR(INDEX(Darbība,SMALL(IF(Mērķis=$H$2,ROW(Darbība)-MIN(ROW(Darbība))+1),ROWS($B$3:B84)))&CHAR(10),\"\")","v":""}]
[null,{"$f":"IFERROR(INDEX(Darbība,SMALL(IF(Mērķis=$B$2,ROW(Darbība)-MIN(ROW(Darbība))+1),ROWS($B$3:B85)))&\" \"&CHAR(10)&(INDEX(Rezultāts,SMALL(IF(Mērķis=$B$2,ROW(Rezultāts)-MIN(ROW(Rezultāts))+1),ROWS($B$3:B85))))&CHAR(10),\"\")","v":""},null,{"$f":"IFERROR(INDEX(Darbība,SMALL(IF(Mērķis=$D$2,ROW(Darbība)-MIN(ROW(Darbība))+1),ROWS($B$3:B85)))&CHAR(10),\"\")","v":""},null,{"$f":"IFERROR(INDEX(Darbība,SMALL(IF(Mērķis=$F$2,ROW(Darbība)-MIN(ROW(Darbība))+1),ROWS($B$3:B85)))&CHAR(10),\"\")","v":""},null,{"$f":"IFERROR(INDEX(Darbība,SMALL(IF(Mērķis=$H$2,ROW(Darbība)-MIN(ROW(Darbība))+1),ROWS($B$3:B85)))&CHAR(10),\"\")","v":""}]
[null,{"$f":"IFERROR(INDEX(Darbība,SMALL(IF(Mērķis=$B$2,ROW(Darbība)-MIN(ROW(Darbība))+1),ROWS($B$3:B86)))&\" \"&CHAR(10)&(INDEX(Rezultāts,SMALL(IF(Mērķis=$B$2,ROW(Rezultāts)-MIN(ROW(Rezultāts))+1),ROWS($B$3:B86))))&CHAR(10),\"\")","v":""},null,{"$f":"IFERROR(INDEX(Darbība,SMALL(IF(Mērķis=$D$2,ROW(Darbība)-MIN(ROW(Darbība))+1),ROWS($B$3:B86)))&CHAR(10),\"\")","v":""},null,{"$f":"IFERROR(INDEX(Darbība,SMALL(IF(Mērķis=$F$2,ROW(Darbība)-MIN(ROW(Darbība))+1),ROWS($B$3:B86)))&CHAR(10),\"\")","v":""},null,{"$f":"IFERROR(INDEX(Darbība,SMALL(IF(Mērķis=$H$2,ROW(Darbība)-MIN(ROW(Darbība))+1),ROWS($B$3:B86)))&CHAR(10),\"\")","v":""}]
[null,{"$f":"IFERROR(INDEX(Darbība,SMALL(IF(Mērķis=$B$2,ROW(Darbība)-MIN(ROW(Darbība))+1),ROWS($B$3:B87)))&\" \"&CHAR(10)&(INDEX(Rezultāts,SMALL(IF(Mērķis=$B$2,ROW(Rezultāts)-MIN(ROW(Rezultāts))+1),ROWS($B$3:B87))))&CHAR(10),\"\")","v":""},null,{"$f":"IFERROR(INDEX(Darbība,SMALL(IF(Mērķis=$D$2,ROW(Darbība)-MIN(ROW(Darbība))+1),ROWS($B$3:B87)))&CHAR(10),\"\")","v":""},null,{"$f":"IFERROR(INDEX(Darbība,SMALL(IF(Mērķis=$F$2,ROW(Darbība)-MIN(ROW(Darbība))+1),ROWS($B$3:B87)))&CHAR(10),\"\")","v":""},null,{"$f":"IFERROR(INDEX(Darbība,SMALL(IF(Mērķis=$H$2,ROW(Darbība)-MIN(ROW(Darbība))+1),ROWS($B$3:B87)))&CHAR(10),\"\")","v":""}]
[null,{"$f":"IFERROR(INDEX(Darbība,SMALL(IF(Mērķis=$B$2,ROW(Darbība)-MIN(ROW(Darbība))+1),ROWS($B$3:B88)))&\" \"&CHAR(10)&(INDEX(Rezultāts,SMALL(IF(Mērķis=$B$2,ROW(Rezultāts)-MIN(ROW(Rezultāts))+1),ROWS($B$3:B88))))&CHAR(10),\"\")","v":""},null,{"$f":"IFERROR(INDEX(Darbība,SMALL(IF(Mērķis=$D$2,ROW(Darbība)-MIN(ROW(Darbība))+1),ROWS($B$3:B88)))&CHAR(10),\"\")","v":""},null,{"$f":"IFERROR(INDEX(Darbība,SMALL(IF(Mērķis=$F$2,ROW(Darbība)-MIN(ROW(Darbība))+1),ROWS($B$3:B88)))&CHAR(10),\"\")","v":""},null,{"$f":"IFERROR(INDEX(Darbība,SMALL(IF(Mērķis=$H$2,ROW(Darbība)-MIN(ROW(Darbība))+1),ROWS($B$3:B88)))&CHAR(10),\"\")","v":""}]
[null,{"$f":"IFERROR(INDEX(Darbība,SMALL(IF(Mērķis=$B$2,ROW(Darbība)-MIN(ROW(Darbība))+1),ROWS($B$3:B89)))&\" \"&CHAR(10)&(INDEX(Rezultāts,SMALL(IF(Mērķis=$B$2,ROW(Rezultāts)-MIN(ROW(Rezultāts))+1),ROWS($B$3:B89))))&CHAR(10),\"\")","v":""},null,{"$f":"IFERROR(INDEX(Darbība,SMALL(IF(Mērķis=$D$2,ROW(Darbība)-MIN(ROW(Darbība))+1),ROWS($B$3:B89)))&CHAR(10),\"\")","v":""},null,{"$f":"IFERROR(INDEX(Darbība,SMALL(IF(Mērķis=$F$2,ROW(Darbība)-MIN(ROW(Darbība))+1),ROWS($B$3:B89)))&CHAR(10),\"\")","v":""},null,{"$f":"IFERROR(INDEX(Darbība,SMALL(IF(Mērķis=$H$2,ROW(Darbība)-MIN(ROW(Darbība))+1),ROWS($B$3:B89)))&CHAR(10),\"\")","v":""}]
[null,{"$f":"IFERROR(INDEX(Darbība,SMALL(IF(Mērķis=$B$2,ROW(Darbība)-MIN(ROW(Darbība))+1),ROWS($B$3:B90)))&\" \"&CHAR(10)&(INDEX(Rezultāts,SMALL(IF(Mērķis=$B$2,ROW(Rezultāts)-MIN(ROW(Rezultāts))+1),ROWS($B$3:B90))))&CHAR(10),\"\")","v":""},null,{"$f":"IFERROR(INDEX(Darbība,SMALL(IF(Mērķis=$D$2,ROW(Darbība)-MIN(ROW(Darbība))+1),ROWS($B$3:B90)))&CHAR(10),\"\")","v":""},null,{"$f":"IFERROR(INDEX(Darbība,SMALL(IF(Mērķis=$F$2,ROW(Darbība)-MIN(ROW(Darbība))+1),ROWS($B$3:B90)))&CHAR(10),\"\")","v":""},null,{"$f":"IFERROR(INDEX(Darbība,SMALL(IF(Mērķis=$H$2,ROW(Darbība)-MIN(ROW(Darbība))+1),ROWS($B$3:B90)))&CHAR(10),\"\")","v":""}]
[null,{"$f":"IFERROR(INDEX(Darbība,SMALL(IF(Mērķis=$B$2,ROW(Darbība)-MIN(ROW(Darbība))+1),ROWS($B$3:B91)))&\" \"&CHAR(10)&(INDEX(Rezultāts,SMALL(IF(Mērķis=$B$2,ROW(Rezultāts)-MIN(ROW(Rezultāts))+1),ROWS($B$3:B91))))&CHAR(10),\"\")","v":""},null,{"$f":"IFERROR(INDEX(Darbība,SMALL(IF(Mērķis=$D$2,ROW(Darbība)-MIN(ROW(Darbība))+1),ROWS($B$3:B91)))&CHAR(10),\"\")","v":""},null,{"$f":"IFERROR(INDEX(Darbība,SMALL(IF(Mērķis=$F$2,ROW(Darbība)-MIN(ROW(Darbība))+1),ROWS($B$3:B91)))&CHAR(10),\"\")","v":""},null,{"$f":"IFERROR(INDEX(Darbība,SMALL(IF(Mērķis=$H$2,ROW(Darbība)-MIN(ROW(Darbība))+1),ROWS($B$3:B91)))&CHAR(10),\"\")","v":""}]
[null,{"$f":"IFERROR(INDEX(Darbība,SMALL(IF(Mērķis=$B$2,ROW(Darbība)-MIN(ROW(Darbība))+1),ROWS($B$3:B92)))&\" \"&CHAR(10)&(INDEX(Rezultāts,SMALL(IF(Mērķis=$B$2,ROW(Rezultāts)-MIN(ROW(Rezultāts))+1),ROWS($B$3:B92))))&CHAR(10),\"\")","v":""},null,{"$f":"IFERROR(INDEX(Darbība,SMALL(IF(Mērķis=$D$2,ROW(Darbība)-MIN(ROW(Darbība))+1),ROWS($B$3:B92)))&CHAR(10),\"\")","v":""},null,{"$f":"IFERROR(INDEX(Darbība,SMALL(IF(Mērķis=$F$2,ROW(Darbība)-MIN(ROW(Darbība))+1),ROWS($B$3:B92)))&CHAR(10),\"\")","v":""},null,{"$f":"IFERROR(INDEX(Darbība,SMALL(IF(Mērķis=$H$2,ROW(Darbība)-MIN(ROW(Darbība))+1),ROWS($B$3:B92)))&CHAR(10),\"\")","v":""}]
[null,{"$f":"IFERROR(INDEX(Darbība,SMALL(IF(Mērķis=$B$2,ROW(Darbība)-MIN(ROW(Darbība))+1),ROWS($B$3:B93)))&\" \"&CHAR(10)&(INDEX(Rezultāts,SMALL(IF(Mērķis=$B$2,ROW(Rezultāts)-MIN(ROW(Rezultāts))+1),ROWS($B$3:B93))))&CHAR(10),\"\")","v":""},null,{"$f":"IFERROR(INDEX(Darbība,SMALL(IF(Mērķis=$D$2,ROW(Darbība)-MIN(ROW(Darbība))+1),ROWS($B$3:B93)))&CHAR(10),\"\")","v":""},null,{"$f":"IFERROR(INDEX(Darbība,SMALL(IF(Mērķis=$F$2,ROW(Darbība)-MIN(ROW(Darbība))+1),ROWS($B$3:B93)))&CHAR(10),\"\")","v":""},null,{"$f":"IFERROR(INDEX(Darbība,SMALL(IF(Mērķis=$H$2,ROW(Darbība)-MIN(ROW(Darbība))+1),ROWS($B$3:B93)))&CHAR(10),\"\")","v":""}]
[null,{"$f":"IFERROR(INDEX(Darbība,SMALL(IF(Mērķis=$B$2,ROW(Darbība)-MIN(ROW(Darbība))+1),ROWS($B$3:B94)))&\" \"&CHAR(10)&(INDEX(Rezultāts,SMALL(IF(Mērķis=$B$2,ROW(Rezultāts)-MIN(ROW(Rezultāts))+1),ROWS($B$3:B94))))&CHAR(10),\"\")","v":""},null,{"$f":"IFERROR(INDEX(Darbība,SMALL(IF(Mērķis=$D$2,ROW(Darbība)-MIN(ROW(Darbība))+1),ROWS($B$3:B94)))&CHAR(10),\"\")","v":""},null,{"$f":"IFERROR(INDEX(Darbība,SMALL(IF(Mērķis=$F$2,ROW(Darbība)-MIN(ROW(Darbība))+1),ROWS($B$3:B94)))&CHAR(10),\"\")","v":""},null,{"$f":"IFERROR(INDEX(Darbība,SMALL(IF(Mērķis=$H$2,ROW(Darbība)-MIN(ROW(Darbība))+1),ROWS($B$3:B94)))&CHAR(10),\"\")","v":""}]
[null,{"$f":"IFERROR(INDEX(Darbība,SMALL(IF(Mērķis=$B$2,ROW(Darbība)-MIN(ROW(Darbība))+1),ROWS($B$3:B95)))&\" \"&CHAR(10)&(INDEX(Rezultāts,SMALL(IF(Mērķis=$B$2,ROW(Rezultāts)-MIN(ROW(Rezultāts))+1),ROWS($B$3:B95))))&CHAR(10),\"\")","v":""},null,{"$f":"IFERROR(INDEX(Darbība,SMALL(IF(Mērķis=$D$2,ROW(Darbība)-MIN(ROW(Darbība))+1),ROWS($B$3:B95)))&CHAR(10),\"\")","v":""},null,{"$f":"IFERROR(INDEX(Darbība,SMALL(IF(Mērķis=$F$2,ROW(Darbība)-MIN(ROW(Darbība))+1),ROWS($B$3:B95)))&CHAR(10),\"\")","v":""},null,{"$f":"IFERROR(INDEX(Darbība,SMALL(IF(Mērķis=$H$2,ROW(Darbība)-MIN(ROW(Darbība))+1),ROWS($B$3:B95)))&CHAR(10),\"\")","v":""}]
[null,{"$f":"IFERROR(INDEX(Darbība,SMALL(IF(Mērķis=$B$2,ROW(Darbība)-MIN(ROW(Darbība))+1),ROWS($B$3:B96)))&\" \"&CHAR(10)&(INDEX(Rezultāts,SMALL(IF(Mērķis=$B$2,ROW(Rezultāts)-MIN(ROW(Rezultāts))+1),ROWS($B$3:B96))))&CHAR(10),\"\")","v":""},null,{"$f":"IFERROR(INDEX(Darbība,SMALL(IF(Mērķis=$D$2,ROW(Darbība)-MIN(ROW(Darbība))+1),ROWS($B$3:B96)))&CHAR(10),\"\")","v":""},null,{"$f":"IFERROR(INDEX(Darbība,SMALL(IF(Mērķis=$F$2,ROW(Darbība)-MIN(ROW(Darbība))+1),ROWS($B$3:B96)))&CHAR(10),\"\")","v":""},null,{"$f":"IFERROR(INDEX(Darbība,SMALL(IF(Mērķis=$H$2,ROW(Darbība)-MIN(ROW(Darbība))+1),ROWS($B$3:B96)))&CHAR(10),\"\")","v":""}]
[null,{"$f":"IFERROR(INDEX(Darbība,SMALL(IF(Mērķis=$B$2,ROW(Darbība)-MIN(ROW(Darbība))+1),ROWS($B$3:B97)))&\" \"&CHAR(10)&(INDEX(Rezultāts,SMALL(IF(Mērķis=$B$2,ROW(Rezultāts)-MIN(ROW(Rezultāts))+1),ROWS($B$3:B97))))&CHAR(10),\"\")","v":""},null,{"$f":"IFERROR(INDEX(Darbība,SMALL(IF(Mērķis=$D$2,ROW(Darbība)-MIN(ROW(Darbība))+1),ROWS($B$3:B97)))&CHAR(10),\"\")","v":""},null,{"$f":"IFERROR(INDEX(Darbība,SMALL(IF(Mērķis=$F$2,ROW(Darbība)-MIN(ROW(Darbība))+1),ROWS($B$3:B97)))&CHAR(10),\"\")","v":""},null,{"$f":"IFERROR(INDEX(Darbība,SMALL(IF(Mērķis=$H$2,ROW(Darbība)-MIN(ROW(Darbība))+1),ROWS($B$3:B97)))&CHAR(10),\"\")","v":""}]
[null,{"$f":"IFERROR(INDEX(Darbība,SMALL(IF(Mērķis=$B$2,ROW(Darbība)-MIN(ROW(Darbība))+1),ROWS($B$3:B98)))&\" \"&CHAR(10)&(INDEX(Rezultāts,SMALL(IF(Mērķis=$B$2,ROW(Rezultāts)-MIN(ROW(Rezultāts))+1),ROWS($B$3:B98))))&CHAR(10),\"\")","v":""},null,{"$f":"IFERROR(INDEX(Darbība,SMALL(IF(Mērķis=$D$2,ROW(Darbība)-MIN(ROW(Darbība))+1),ROWS($B$3:B98)))&CHAR(10),\"\")","v":""},null,{"$f":"IFERROR(INDEX(Darbība,SMALL(IF(Mērķis=$F$2,ROW(Darbība)-MIN(ROW(Darbība))+1),ROWS($B$3:B98)))&CHAR(10),\"\")","v":""},null,{"$f":"IFERROR(INDEX(Darbība,SMALL(IF(Mērķis=$H$2,ROW(Darbība)-MIN(ROW(Darbība))+1),ROWS($B$3:B98)))&CHAR(10),\"\")","v":""}]
[null,{"$f":"IFERROR(INDEX(Darbība,SMALL(IF(Mērķis=$B$2,ROW(Darbība)-MIN(ROW(Darbība))+1),ROWS($B$3:B99)))&\" \"&CHAR(10)&(INDEX(Rezultāts,SMALL(IF(Mērķis=$B$2,ROW(Rezultāts)-MIN(ROW(Rezultāts))+1),ROWS($B$3:B99))))&CHAR(10),\"\")","v":""},null,{"$f":"IFERROR(INDEX(Darbība,SMALL(IF(Mērķis=$D$2,ROW(Darbība)-MIN(ROW(Darbība))+1),ROWS($B$3:B99)))&CHAR(10),\"\")","v":""},null,{"$f":"IFERROR(INDEX(Darbība,SMALL(IF(Mērķis=$F$2,ROW(Darbība)-MIN(ROW(Darbība))+1),ROWS($B$3:B99)))&CHAR(10),\"\")","v":""},null,{"$f":"IFERROR(INDEX(Darbība,SMALL(IF(Mērķis=$H$2,ROW(Darbība)-MIN(ROW(Darbība))+1),ROWS($B$3:B99)))&CHAR(10),\"\")","v":""}]
[null,{"$f":"IFERROR(INDEX(Darbība,SMALL(IF(Mērķis=$B$2,ROW(Darbība)-MIN(ROW(Darbība))+1),ROWS($B$3:B100)))&\" \"&CHAR(10)&(INDEX(Rezultāts,SMALL(IF(Mērķis=$B$2,ROW(Rezultāts)-MIN(ROW(Rezultāts))+1),ROWS($B$3:B100))))&CHAR(10),\"\")","v":""},null,{"$f":"IFERROR(INDEX(Darbība,SMALL(IF(Mērķis=$D$2,ROW(Darbība)-MIN(ROW(Darbība))+1),ROWS($B$3:B100)))&CHAR(10),\"\")","v":""},null,{"$f":"IFERROR(INDEX(Darbība,SMALL(IF(Mērķis=$F$2,ROW(Darbība)-MIN(ROW(Darbība))+1),ROWS($B$3:B100)))&CHAR(10),\"\")","v":""},null,{"$f":"IFERROR(INDEX(Darbība,SMALL(IF(Mērķis=$H$2,ROW(Darbība)-MIN(ROW(Darbība))+1),ROWS($B$3:B100)))&CHAR(10),\"\")","v":""}]

{"sheet":"Par","index":2,"n_rows":6,"n_cols":1,"rows_kept":6}
["Par šo darbgrāmatu"]
["Norādījumi ekrāna lasītājiem"]
["Šajā darbgrāmatā ir 3 darblapas. \n\nCeļveža dati\nAtjaunināmais ceļvedis\nPar\n\nNorādījumi katrā darblapā ir sniegti kolonnā A, sākot no šūnas A1. Tie ir rakstīti kā slēpts teksts. Katrā solī ir aprakstīta attiecīgās rindas informācija. Katrs nākamais solis ir aprakstīts šūnā A2, A3 u.t.t., ja vien nav skaidri norādīts citādi. Piemēram, var būt sniegti norādījumi par nākamo darbību “Pārejiet uz šūnu A6”. \n\nSlēptais teksts netiek drukāts.\n\nLai jebkurā darblapā noņemtu šos norādījumus, vienkārši izdzēsiet kolonnu A.\n"]
["Par šo darbgrāmatu"]
["Ceļveža datu darblapā ievadiet informāciju par atskaites punktiem.  Obligāti kārtojiet datus pēc prioritātes un pēc tam — pēc atskaites punkta, lai skatītu pabeigtos, pašreizējos, nākotnes atskaites punktus un atskaites punktus, kuru termiņš tuvojas, atbilstoši samazinātai prioritātei. Vienumi ar augstāko prioritāti tiks uzskaitīti augšā. Atjaunināmā ceļveža darblapā esošais ceļvedis tiek automātiski atjaunināts.\n"]
["Šis ir pēdējais norādījums šajā darblapā."]